{"text_format":"1","workbook":"xlsx","n_sheets":8,"sheets":["Quote-Builder","Final-Quote","Contacts","Comparables","QuoteUnFin","QuoteFin","Scratch","Sheet4"],"not_rendered":{"charts":0,"images":0,"macros":1,"external_links":0,"defined_names":0,"comments":0,"pivot_tables":0},"unopened":[],"bounds":{"document_bytes":16777216,"sheet_cells":100000,"rows_first":2000,"rows_last":500,"rows_between":2000,"halvings":0,"cell_chars":16384,"cell_head_chars":4096},"cells_cut":0,"cells_raw":0,"read":"whole","date_system":"1900"}

{"sheet":"Quote-Builder","index":0,"n_rows":60,"n_cols":11,"rows_kept":60,"cut":false,"hidden":false,"merged":[]}
[]
["Quote Details -- Unfinished",null,null,"Quote Details -- Finished",null,null,"Quote Details -- Finished",null,null,"Quote Details -- Finished"]
[]
[" 3 1/4\" Red Oak #1 Common",null,null,"3/4\" x 5\" Select Red Oak, Clear Finish, Select",null,null,"3/4\" x 3-1/4\" Select Red Oak, Clear Finish, Select",null,null,"3/4\" x 4\" Natural Red Oak, Clear Finish, Natural"]
["Total Square Feet",950,null,"Total Square Feet",{"$f":"B5","v":950},null,"Total Square Feet",{"$f":"E5","v":950},null,"Total Square Feet",{"$f":"H5","v":950}]
["Materials SubTotal",{"$f":"SUM(B25:B36)","v":394.89762499999995},null,"Materials SubTotal",{"$f":"SUM(E25:E29)","v":240.651625},null,"Materials SubTotal",{"$f":"SUM(H25:H29)","v":240.651625},null,"Materials SubTotal",{"$f":"SUM(K25:K29)","v":240.651625}]
["Wood SubTotal (pre-markup)",{"$f":"B21","v":2280},null,"Wood SubTotal (pre-markup)",{"$f":"E21","v":7001.5},null,"Wood SubTotal (pre-markup)",{"$f":"H21","v":6640.5},null,"Wood SubTotal (pre-markup)",{"$f":"K21","v":6099}]
["Tax (8.25%)",{"$f":"(SUM(B6:B7)*B46)","v":220.67905406250003},null,"Tax (8.25%)",{"$f":"SUM(E6:E7)*E39","v":597.47750906250008},null,"Tax (8.25%)",{"$f":"SUM(H6:H7)*H39","v":567.69500906250005},null,"Tax (8.25%)",{"$f":"SUM(K6:K7)*K39","v":523.02125906250001}]
["Total With Tax",{"$f":"SUM(B6:B8)","v":2895.5766790625003},null,"Total With Tax",{"$f":"SUM(E6:E8)","v":7839.6291340625003},null,"Total With Tax",{"$f":"SUM(H6:H8)","v":7448.8466340625},null,"Total With Tax",{"$f":"SUM(K6:K8)","v":6862.6728840625001}]
["Total cost of materials per SqFt (w/ tax)",{"$f":"B9/B5","v":3.0479754516447373},null,"Total cost of materials per SqFt (w/ tax)",{"$f":"E9/E5","v":8.2522411937500006},null,"Total cost of materials per SqFt (w/ tax)",{"$f":"H9/H5","v":7.8408911937500001},null,"Total cost of materials per SqFt (w/ tax)",{"$f":"K9/K5","v":7.2238661937500002}]
["New Cost of Wood w/ Markup ",{"$f":"((B7/B5)+B39)*B5","v":3230},null,"New Cost of Wood w/ Markup ",{"$f":"((E7/E5)+E32)*E5","v":7951.5000000000009},null,"New Cost of Wood w/ Markup ",{"$f":"((H7/H5)+H32)*H5","v":7590.5},null,"New Cost of Wood w/ Markup ",{"$f":"((K7/K5)+K32)*K5","v":7049}]
["Labor",{"$f":"B5*B40","v":4750},null,"Labor",{"$f":"E5*E33","v":2850},null,"Labor",{"$f":"H5*H33","v":2850},null,"Labor",{"$f":"K5*K33","v":2850}]
["Total Price Quoted",{"$f":"(B6*(1+B46))+(B7*B46)+B11+B12","v":8595.5766790625003},null,"Total Price Quoted",{"$f":"(E6*(1+E39))+(E7*E39)+E11+E12","v":11639.629134062501},null,"Total Price Quoted",{"$f":"(H6*(1+H39))+(H7*H39)+H11+H12","v":11248.8466340625},null,"Total Price Quoted",{"$f":"(K6*(1+K39))+(K7*K39)+K11+K12","v":10662.6728840625}]
["Travel Cost",{"$f":"B44","v":352.18},null,"Travel Cost",{"$f":"B14","v":352.18},null,"Travel Cost",{"$f":"E14","v":352.18},null,"Travel Cost",{"$f":"H14","v":352.18}]
["Total With Travel",{"$f":"B14+B13","v":8947.7566790625006},null,"Total with Travel",{"$f":"E14+E13","v":11991.809134062501},null,"Total with Travel",{"$f":"H14+H13","v":11601.0266340625},null,"Total with Travel",{"$f":"K14+K13","v":11014.8528840625}]
["Total Quoted per SqFt",{"$f":"B15/B5","v":9.418691241118422},null,"Total Quoted per SqFt",{"$f":"E15/E5","v":12.622956983223686},null,"Total Quoted per SqFt",{"$f":"H15/H5","v":12.211606983223685},null,"Total Quoted per SqFt",{"$f":"K15/K5","v":11.594581983223685}]
["Labor and Wood Markup",{"$f":"B12+B5","v":5700},null,"Labor and Wood Markup",{"$f":"E12+E5","v":3800},null,"Labor and Wood Markup",{"$f":"H12+H5","v":3800},null,"Labor and Wood Markup",{"$f":"K12+K5","v":3800}]
[]
["Details",null,null,"Details",null,null,"Details",null,null,"Details"]
["Wood",null,null,"Wood",null,null,"Wood",null,null,"Wood"]
[" 3 1/4\" Red Oak #1 Common",2280,null,"3/4\" x 5\" Select Red Oak, Clear Finish, Select",{"$f":"E22*E5","v":7001.5},null,"3/4\" x 3-1/4\" Select Red Oak, Clear Finish, Select",{"$f":"H22*H5","v":6640.5},null,"3/4\" x 4\" Natural Red Oak, Clear Finish, Natural",{"$f":"K22*K5","v":6099}]
["Cost per Square Foot",{"$f":"B7/B5","v":2.4},null,"Estimated Cost per Square Foot",7.37,null,"Estimated Cost per Square Foot",6.99,null,"Estimated Cost per Square Foot",6.42]
[]
["Materials",null,null,"Materials",null,null,"Materials",null,null,"Materials"]
["Polo Plaz 5Gal Supreme Finish Satin",{"$f":"QuoteUnFin!$H$3*$B$5","v":61.274999999999999},null,"Clear Film 6 mil 10 x 100",{"$f":"QuoteUnFin!$H$5*$B$5","v":31.825000000000003},null,"Clear Film 6 mil 10 x 100",{"$f":"QuoteUnFin!$H$5*$B$5","v":31.825000000000003},null,"Clear Film 6 mil 10 x 100",{"$f":"QuoteUnFin!$H$5*$B$5","v":31.825000000000003}]
["BonaKemi DriFast 1Gal Stain Antique Brown",{"$f":"QuoteUnFin!$H$4*$B$5","v":57.076000000000001},null,"15# Roofing Felt - G.A.P. Label",{"$f":"QuoteUnFin!$H$6*$B$5","v":34.4375},null,"15# Roofing Felt - G.A.P. Label",{"$f":"QuoteUnFin!$H$6*$B$5","v":34.4375},null,"15# Roofing Felt - G.A.P. Label",{"$f":"QuoteUnFin!$H$6*$B$5","v":34.4375}]
["Clear Film 6 mil 10 x 100",{"$f":"QuoteUnFin!$H$5*$B$5","v":31.825000000000003},null,"Staple - 1 1/2\" Spotnails",{"$f":"QuoteUnFin!$H$7*$B$5","v":46.436},null,"Staple - 1 1/2\" Spotnails",{"$f":"QuoteUnFin!$H$7*$B$5","v":46.436},null,"Staple - 1 1/2\" Spotnails",{"$f":"QuoteUnFin!$H$7*$B$5","v":46.436}]
["15# Roofing Felt - G.A.P. Label",{"$f":"QuoteUnFin!$H$6*$B$5","v":34.4375},null,"1 1/4 Pins - Aerosmith",{"$f":"QuoteUnFin!$H$8*$B$5","v":61.75},null,"1 1/4 Pins - Aerosmith",{"$f":"QuoteUnFin!$H$8*$B$5","v":61.75},null,"1 1/4 Pins - Aerosmith",{"$f":"QuoteUnFin!$H$8*$B$5","v":61.75}]
["Staple - 1 1/2\" Spotnails",{"$f":"QuoteUnFin!$H$7*$B$5","v":46.436},null,"5/8\" Plywood - 19/32 PRS 40/20 Ext 1 SYP",{"$f":"QuoteUnFin!$H$9*$B$5","v":66.203125},null,"5/8\" Plywood - 19/32 PRS 40/20 Ext 1 SYP",{"$f":"QuoteUnFin!$H$9*$B$5","v":66.203125},null,"5/8\" Plywood - 19/32 PRS 40/20 Ext 1 SYP",{"$f":"QuoteUnFin!$H$9*$B$5","v":66.203125}]
["1 1/4 Pins - Aerosmith",{"$f":"QuoteUnFin!$H$8*$B$5","v":61.75}]
["5/8\" Plywood - 19/32 PRS 40/20 Ext 1 SYP",{"$f":"QuoteUnFin!$H$9*$B$5","v":66.203125},null,"Markup",null,null,"Markup",null,null,"Markup"]
["7 7/8 x 29 1/2 Norton Belt 36 Grit Silicon Carbide",{"$f":"QuoteUnFin!$H$10","v":15.25},null,"Wood",1,null,"Wood",1,null,"Wood",1]
["7 7/8 x 29 1/2 Norton Belt 80 Grit Silicon Carbide",{"$f":"QuoteUnFin!$H$11","v":6.37},null,"Labor",3,null,"Labor",3,null,"Labor",3]
["16in Norton Screen 80 Grit",{"$f":"QuoteUnFin!$H$12","v":5.25}]
["7 x 7/8 Norton Edger Disc Silicon Carbide 80 Grit",{"$f":"QuoteUnFin!$H$13*$B$5","v":4.75},null,"Distance",null,null,"Distance",null,null,"Distance"]
["7 x 7/8 Norton Edger Disc Silicon Carbide 100 Grit",{"$f":"QuoteUnFin!$H$14*$B$5","v":4.2750000000000004},null,"Miles Traveled",{"$f":"B43","v":1243},null,"Miles Traveled",{"$f":"E43","v":2.375},null,"Miles Traveled",{"$f":"H43","v":2.375}]
[null,null,null,"Total Cost",{"$f":"B44","v":352.18},null,"Total Cost",{"$f":"E44","v":0.95},null,"Total Cost",{"$f":"H44","v":0.95}]
["Markup"]
["Wood",1,null,"Tax Rate",8.2500000000000004E-2,null,"Tax Rate",8.2500000000000004E-2,null,"Tax Rate",8.2500000000000004E-2]
["Labor",5]
[null,null,null,"Materials","Qty. Used",null,"Materials","Qty. Used",null,"Materials","Qty. Used"]
["Distance",null,null,"Clear Film 6 mil 10 x 100",{"$f":"$B$5/1000","v":0.95},null,"Clear Film 6 mil 10 x 100",{"$f":"$B$5/1000","v":0.95},null,"Clear Film 6 mil 10 x 100",{"$f":"$B$5/1000","v":0.95}]
["Miles Traveled",1243,null,"15# Roofing Felt - G.A.P. Label",{"$f":"$B$5/400","v":2.375},null,"15# Roofing Felt - G.A.P. Label",{"$f":"$B$5/400","v":2.375},null,"15# Roofing Felt - G.A.P. Label",{"$f":"$B$5/400","v":2.375}]
["Total Cost",352.18,null,"Staple - 1 1/2\" Spotnails",{"$f":"$B$5/1000","v":0.95},null,"Staple - 1 1/2\" Spotnails",{"$f":"$B$5/1000","v":0.95},null,"Staple - 1 1/2\" Spotnails",{"$f":"$B$5/1000","v":0.95}]
[null,null,null,"1 1/4 Pins - Aerosmith",{"$f":"$B$5/1000","v":0.95},null,"1 1/4 Pins - Aerosmith",{"$f":"$B$5/1000","v":0.95},null,"1 1/4 Pins - Aerosmith",{"$f":"$B$5/1000","v":0.95}]
["Tax Rate",8.2500000000000004E-2,null,"5/8\" Plywood - 19/32 PRS 40/20 Ext 1 SYP",{"$f":"$B$5/32","v":29.6875},null,"5/8\" Plywood - 19/32 PRS 40/20 Ext 1 SYP",{"$f":"$B$5/32","v":29.6875},null,"5/8\" Plywood - 19/32 PRS 40/20 Ext 1 SYP",{"$f":"$B$5/32","v":29.6875}]
[]
["Materials","Qty. Used"]
["Polo Plaz 5Gal Supreme Finish Satin",{"$f":"B5/2000","v":0.47499999999999998}]
["BonaKemi DriFast 1Gal Stain Antique Brown",{"$f":"B5/500","v":1.9}]
["Clear Film 6 mil 10 x 100",{"$f":"$B$5/1000","v":0.95}]
["15# Roofing Felt - G.A.P. Label",{"$f":"$B$5/400","v":2.375}]
["Staple - 1 1/2\" Spotnails",{"$f":"$B$5/1000","v":0.95}]
["1 1/4 Pins - Aerosmith",{"$f":"$B$5/1000","v":0.95}]
["5/8\" Plywood - 19/32 PRS 40/20 Ext 1 SYP",{"$f":"$B$5/32","v":29.6875}]
["7 7/8 x 29 1/2 Norton Belt 36 Grit Silicon Carbide",{"$f":"$B$5/1000","v":0.95}]
["7 7/8 x 29 1/2 Norton Belt 80 Grit Silicon Carbide",{"$f":"$B$5/1000","v":0.95}]
["16in Norton Screen 80 Grit",{"$f":"$B$5/100","v":9.5}]
["7 x 7/8 Norton Edger Disc Silicon Carbide 80 Grit",{"$f":"$B$5/100","v":9.5}]
["7 x 7/8 Norton Edger Disc Silicon Carbide 100 Grit",{"$f":"$B$5/100","v":9.5}]

{"sheet":"Final-Quote","index":1,"n_rows":14,"n_cols":8,"rows_kept":14,"cut":false,"hidden":false,"merged":[[12,1,12,5],[13,1,13,5],[10,1,10,6],[11,1,11,6],[1,1,2,5],[1,7,1,8],[2,7,2,8],[5,1,5,4],[6,1,6,4],[7,1,7,4]]}
[]
[null,"Bird Hardwood Floors",null,null,null,null,null,"Quote:"]
[null,null,null,null,null,null,null,1234]
[]
[]
[null,"Total Square Footage",null,null,null,null,950]
[null,"Total Cost",null,null,null,null,11601.03]
[null,"Cost per Square Foot",null,null,null,null,{"$f":"G7/G6","v":12.211610526315789}]
[]
[]
[null,"Details"]
[null,"Wood Materials"]
[null," 3 1/4\" Red Oak #1 Common [Total Cost]",null,null,null,null,6640.5]
[null,"Cost per Square Foot",null,null,null,null,{"$f":"G13/G6","v":6.99}]

{"sheet":"Contacts","index":2,"n_rows":6,"n_cols":13,"rows_kept":6,"cut":false,"hidden":false,"merged":[]}
["ID","Contact Type","Company / Person","Last Name","First Name","Address","City","State","ZIP","Phone","Email","Date Completed","Note"]
[1,"Other","Sample Restaurant Group","Smith","Bob","1529 Gardenia Ave.","Long Beach","CA",90813,"(562) 591-6214","roypeckham@gmail.com","2010-09-20"]
[2,"Client","businesgfhdfgh","Peckham","Roy","650 N 500 W Apartment #303","Provo","UT","84601","(562) 243-9548","roypeckham@gmail.com",null,"note 1"]
[3,"Other","Sanchez Contractors","Sanchez","Marco","3702 Tree Manor Lane","Kingwood","TX",77345,"(281) 360-9842"]
[4,"Client","Person","Peckham","Robert","650 N 500 W Apartment #303","Provo","UT","84601","(562) 243-9548","roypeckham@gmail.com",null,"note 3"]
[5,"Client","asdf","asdf","asdf","asdf","asdfasd","OK","asdfasdfasdfas","asdf","asdf",null,"asdf"]

{"sheet":"Comparables","index":3,"n_rows":484,"n_cols":7,"rows_kept":484,"cut":false,"hidden":false,"merged":[]}
["Category","Sub-Category","Maker","Name","High Price","Low Price","Link"]
["Solid Hardwood","Prefinished Bellawood","BELLAWOOD","3/4\" x 3-1/4\" Natural Australian Cypress, Clear Finish, Natural",8.69,4.6900000000000004,"/catalog/product.jsp?productId=1541&amp;categoryId=348&amp;sectionId=1&amp;subCategoryId=0"]
["Solid Hardwood","Prefinished Bellawood","BELLAWOOD","3/4\" x 5\" Brazilian Cherry, Clear Finish, Select",8.99,5.89,"/catalog/product.jsp?productId=1550&amp;categoryId=348&amp;sectionId=1&amp;subCategoryId=0"]
["Solid Hardwood","Prefinished Bellawood","BELLAWOOD","3/4\" x 3-1/4\" Select Golden Teak, Clear Finish, Select",7.59,6.19,"/catalog/product.jsp?productId=1571&amp;categoryId=348&amp;sectionId=1&amp;subCategoryId=0"]
["Solid Hardwood","Prefinished Bellawood","BELLAWOOD","3/8\" x 3\" Select Brazilian Koa, Clear Finish, Select",7.29,5.09,"/catalog/product.jsp?productId=1573&amp;categoryId=348&amp;sectionId=1&amp;subCategoryId=0"]
["Solid Hardwood","Prefinished Bellawood","BELLAWOOD","3/4\" x 3-1/4\" Brazilian Koa, Clear Finish, Select",8.4499999999999993,6.19,"/catalog/product.jsp?productId=1574&amp;categoryId=348&amp;sectionId=1&amp;subCategoryId=0"]
["Solid Hardwood","Prefinished Bellawood","BELLAWOOD","3/4\" x 5\" Brazilian Koa Flooring, Clear Finish, Select",9.9499999999999993,6.39,"/catalog/product.jsp?productId=1575&amp;categoryId=348&amp;sectionId=1&amp;subCategoryId=0"]
["Solid Hardwood","Prefinished Bellawood","BELLAWOOD","5/16\" x 2-1/4\" Select Brazilian Koa, Clear Finish, Select",6.45,4.09,"/catalog/product.jsp?productId=3198&amp;categoryId=348&amp;sectionId=1&amp;subCategoryId=0"]
["Solid Hardwood","Prefinished Bellawood","BELLAWOOD","5/16\" x 2-1/4\" Select Brazilian Mesquite, Clear Finish, Select",6.45,3.99,"/catalog/product.jsp?productId=3457&amp;categoryId=348&amp;sectionId=1&amp;subCategoryId=0"]
["Solid Hardwood","Prefinished Bellawood","BELLAWOOD","5/16\" x 2-1/4\" Select Brazilian Cherry, Clear Finish, Select",6.45,3.89,"/catalog/product.jsp?productId=2961&amp;categoryId=348&amp;sectionId=1&amp;subCategoryId=0"]
["Solid Hardwood","Prefinished Bellawood","BELLAWOOD","5/16\" x 2-1/4\" Select Brazilian Walnut, Clear Finish, Select",6.45,4.1900000000000004,"/catalog/product.jsp?productId=3067&amp;categoryId=348&amp;sectionId=1&amp;subCategoryId=0"]
["Solid Hardwood","Prefinished Bellawood","BELLAWOOD","5/16\" x 2-1/4\" Select Golden Teak, Clear Finish, Select",6.45,4.09,"/catalog/product.jsp?productId=3216&amp;categoryId=348&amp;sectionId=1&amp;subCategoryId=0"]
["Solid Hardwood","Prefinished Bellawood","BELLAWOOD","5/16\" x 2-1/4\" Select Brazilian Teak, Clear Finish, Select",5.99,2.99,"/catalog/product.jsp?productId=3519&amp;categoryId=348&amp;sectionId=1&amp;subCategoryId=0"]
["Solid Hardwood","Prefinished Bellawood","BELLAWOOD","5/16\" x 2-1/4\" Select Brazilian Redwood, Clear Finish, Select",6.45,4.1900000000000004,"/catalog/product.jsp?productId=4337&amp;categoryId=348&amp;sectionId=1&amp;subCategoryId=0"]
["Solid Hardwood","Prefinished Bellawood","BELLAWOOD","5/16\" x 2-1/4\" Select Brazilian Chestnut, Clear Finish, Select",5.99,4.09,"/catalog/product.jsp?productId=5596&amp;categoryId=348&amp;sectionId=1&amp;subCategoryId=0"]
["Solid Hardwood","Prefinished Bellawood","BELLAWOOD","5/16\" x 3\" Brazilian Mesquite, Clear Finish, Select",6.45,4.1900000000000004,"/catalog/product.jsp?productId=6859&amp;categoryId=348&amp;sectionId=1&amp;subCategoryId=0"]
["Solid Hardwood","Prefinished Bellawood","BELLAWOOD","5/16\" x 3\" Brazilian Koa, Clear Finish, Select",6.45,4.1900000000000004,"/catalog/product.jsp?productId=6924&amp;categoryId=348&amp;sectionId=1&amp;subCategoryId=0"]
["Solid Hardwood","Prefinished Bellawood","BELLAWOOD","5/16\" x 3\" Brazilian Cherry Select, Clear Finish, Select",6.45,3.89,"/catalog/product.jsp?productId=6997&amp;categoryId=348&amp;sectionId=1&amp;subCategoryId=0"]
["Solid Hardwood","Prefinished Bellawood","BELLAWOOD","5/16\" x 3\" Brazilian Teak Select, Clear Finish, Select",5.99,4.29,"/catalog/product.jsp?productId=6998&amp;categoryId=348&amp;sectionId=1&amp;subCategoryId=0"]
["Solid Hardwood","Prefinished Bellawood","BELLAWOOD","5/16\" x 3\" Select Golden Teak, Clear Finish, Select",6.45,4.1900000000000004,"/catalog/product.jsp?productId=7010&amp;categoryId=348&amp;sectionId=1&amp;subCategoryId=0"]
["Solid Hardwood","Prefinished Bellawood","BELLAWOOD","3/8\" x 3\" Natural Maple, Clear Finish, Natural",7.29,4.1900000000000004,"/catalog/product.jsp?productId=1515&amp;categoryId=348&amp;sectionId=1&amp;subCategoryId=0"]
["Solid Hardwood","Prefinished Bellawood","BELLAWOOD","3/8\" x 3\" Select Maple, Clear Finish, Select",7.49,4.3899999999999997,"/catalog/product.jsp?productId=1518&amp;categoryId=348&amp;sectionId=1&amp;subCategoryId=0"]
["Solid Hardwood","Prefinished Bellawood","BELLAWOOD","3/8\" x 3\" Natural Red Oak, Clear Finish, Natural",7.29,4.29,"/catalog/product.jsp?productId=1527&amp;categoryId=348&amp;sectionId=1&amp;subCategoryId=0"]
["Solid Hardwood","Prefinished Bellawood","BELLAWOOD","3/8\" x 3\" Select Red Oak, Clear Finish, Select",7.79,4.49,"/catalog/product.jsp?productId=1530&amp;categoryId=348&amp;sectionId=1&amp;subCategoryId=0"]
["Solid Hardwood","Prefinished Bellawood","BELLAWOOD","3/8\" x 3\" Select Brazilian Mesquite, Clear Finish, Select",7.29,4.99,"/catalog/product.jsp?productId=1555&amp;categoryId=348&amp;sectionId=1&amp;subCategoryId=0"]
["Solid Hardwood","Prefinished Bellawood","BELLAWOOD","3/8\" x 3\" Select Bolivian Rosewood, Clear Finish, Select",5.99,5.09,"/catalog/product.jsp?productId=1559&amp;categoryId=348&amp;sectionId=1&amp;subCategoryId=0"]
["Solid Hardwood","Prefinished Bellawood","BELLAWOOD","3/8\" x 3\" Brazilian Teak, Clear Finish, Select",7.49,5.19,"/catalog/product.jsp?productId=1564&amp;categoryId=348&amp;sectionId=1&amp;subCategoryId=0"]
["Solid Hardwood","Prefinished Bellawood","BELLAWOOD","3/8\" x 3\" Golden Teak, Clear Finish, Select",7.69,5.19,"/catalog/product.jsp?productId=1570&amp;categoryId=348&amp;sectionId=1&amp;subCategoryId=0"]
["Solid Hardwood","Prefinished Bellawood","BELLAWOOD","3/8\" x 3\" Select Purple Heart, Clear Finish, Select",7.95,4.49,"/catalog/product.jsp?productId=1578&amp;categoryId=348&amp;sectionId=1&amp;subCategoryId=0"]
["Solid Hardwood","Prefinished Bellawood","BELLAWOOD","3/8\" x 3\" Select Santos Mahogany, Clear Finish, Select",8.69,5.89,"/catalog/product.jsp?productId=1581&amp;categoryId=348&amp;sectionId=1&amp;subCategoryId=0"]
["Solid Hardwood","Prefinished Bellawood","BELLAWOOD","3/8\" x 3\" Select Brazilian Redwood, Clear Finish, Select",7.29,4.8899999999999997,"/catalog/product.jsp?productId=3218&amp;categoryId=348&amp;sectionId=1&amp;subCategoryId=0"]
["Solid Hardwood","Prefinished Bellawood","BELLAWOOD","1/2\" x 3-1/4\" Natural Australian Cypress, Clear Finish, Natural",6.89,4.79,"/catalog/product.jsp?productId=1540&amp;categoryId=348&amp;sectionId=1&amp;subCategoryId=0"]
["Solid Hardwood","Prefinished Bellawood","BELLAWOOD","1/2\" x 3\" Brazilian Cherry Lite, Clear Finish, Select",7.49,4.8899999999999997,"/catalog/product.jsp?productId=1546&amp;categoryId=348&amp;sectionId=1&amp;subCategoryId=0"]
["Solid Hardwood","Prefinished Bellawood","BELLAWOOD","3/4\" x 2-1/4\" Natural Ash, Clear Finish, Natural",4.79,3.99,"/catalog/product.jsp?productId=1477&amp;categoryId=348&amp;sectionId=1&amp;subCategoryId=0"]
["Solid Hardwood","Prefinished Bellawood","BELLAWOOD","3/4\" x 2-1/4\" Select Ash, Clear Finish, Select",7.45,4.29,"/catalog/product.jsp?productId=1478&amp;categoryId=348&amp;sectionId=1&amp;subCategoryId=0"]
["Solid Hardwood","Prefinished Bellawood","BELLAWOOD","3/4\" x 3-1/4\" Natural Ash, Clear Finish, Natural",5.99,4.29,"/catalog/product.jsp?productId=1479&amp;categoryId=348&amp;sectionId=1&amp;subCategoryId=0"]
["Solid Hardwood","Prefinished Bellawood","BELLAWOOD","3/4\" x 3-1/4\" Select Ash, Clear Finish, Select",7.95,4.99,"/catalog/product.jsp?productId=1480&amp;categoryId=348&amp;sectionId=1&amp;subCategoryId=0"]
["Solid Hardwood","Prefinished Bellawood","BELLAWOOD","3/4\" x 4\" Natural Ash, Clear Finish, Natural",7.99,4.49,"/catalog/product.jsp?productId=1481&amp;categoryId=348&amp;sectionId=1&amp;subCategoryId=0"]
["Solid Hardwood","Prefinished Bellawood","BELLAWOOD","3/4\" x 4\" Select Ash, Clear Finish, Select",8.4499999999999993,5.29,"/catalog/product.jsp?productId=1482&amp;categoryId=348&amp;sectionId=1&amp;subCategoryId=0"]
["Solid Hardwood","Prefinished Bellawood","BELLAWOOD","3/4\" x 5\" Natural Ash, Clear Finish, Natural",7.95,4.6900000000000004,"/catalog/product.jsp?productId=1483&amp;categoryId=348&amp;sectionId=1&amp;subCategoryId=0"]
["Solid Hardwood","Prefinished Bellawood","BELLAWOOD","3/4\" x 5\" Select Ash, Clear Finish, Select",7.95,5.59,"/catalog/product.jsp?productId=1484&amp;categoryId=348&amp;sectionId=1&amp;subCategoryId=0"]
["Solid Hardwood","Prefinished Bellawood","BELLAWOOD","3/4\" x 3\" Natural American Walnut, Clear Finish, Natural",9.9499999999999993,6.99,"/catalog/product.jsp?productId=1485&amp;categoryId=348&amp;sectionId=1&amp;subCategoryId=0"]
["Solid Hardwood","Prefinished Bellawood","BELLAWOOD","3/4\" x 4\" American Walnut, Clear Finish, Natural",9.9499999999999993,6.99,"/catalog/product.jsp?productId=1486&amp;categoryId=348&amp;sectionId=1&amp;subCategoryId=0"]
["Solid Hardwood","Prefinished Bellawood","BELLAWOOD","3/4\" x 5\" Natural American Walnut, Clear Finish, Natural",10.95,7.49,"/catalog/product.jsp?productId=1487&amp;categoryId=348&amp;sectionId=1&amp;subCategoryId=0"]
["Solid Hardwood","Prefinished Bellawood","BELLAWOOD","3/4\" x 2-1/4\" Select Birdseye Maple, Clear Finish, Select",10.95,7.29,"/catalog/product.jsp?productId=1489&amp;categoryId=348&amp;sectionId=1&amp;subCategoryId=0"]
["Solid Hardwood","Prefinished Bellawood","BELLAWOOD","3/4\" x 3-1/4\" Select Birdseye Maple, Clear Finish, Select",10.95,7.49,"/catalog/product.jsp?productId=1491&amp;categoryId=348&amp;sectionId=1&amp;subCategoryId=0"]
["Solid Hardwood","Prefinished Bellawood","BELLAWOOD","3/4\" x 2-1/4\" Natural Beech, Clear Finish, Natural",7.29,4.6900000000000004,"/catalog/product.jsp?productId=1492&amp;categoryId=348&amp;sectionId=1&amp;subCategoryId=0"]
["Solid Hardwood","Prefinished Bellawood","BELLAWOOD","3/4\" x 2-1/4\" Select Beech, Clear Finish, Select",7.95,4.99,"/catalog/product.jsp?productId=1493&amp;categoryId=348&amp;sectionId=1&amp;subCategoryId=0"]
["Solid Hardwood","Prefinished Bellawood","BELLAWOOD","3/4\" x 3-1/4\" Natural Beech, Clear Finish, Natural",7.39,4.6900000000000004,"/catalog/product.jsp?productId=1494&amp;categoryId=348&amp;sectionId=1&amp;subCategoryId=0"]
["Solid Hardwood","Prefinished Bellawood","BELLAWOOD","3/4\" x 3-1/4\" Select Beech, Clear Finish, Select",8.49,5.49,"/catalog/product.jsp?productId=1495&amp;categoryId=348&amp;sectionId=1&amp;subCategoryId=0"]
["Solid Hardwood","Prefinished Bellawood","BELLAWOOD","3/4\" x 2-1/4\" Natural Birch, Clear Finish, Natural",7.49,4.29,"/catalog/product.jsp?productId=1496&amp;categoryId=348&amp;sectionId=1&amp;subCategoryId=0"]
["Solid Hardwood","Prefinished Bellawood","BELLAWOOD","3/4\" x 2-1/4\" Select Birch, Clear Finish, Select",7.39,4.6900000000000004,"/catalog/product.jsp?productId=1497&amp;categoryId=348&amp;sectionId=1&amp;subCategoryId=0"]
["Solid Hardwood","Prefinished Bellawood","BELLAWOOD","3/4\" x 3-1/4\" Natural Birch, Clear Finish, Natural",7.45,4.79,"/catalog/product.jsp?productId=1498&amp;categoryId=348&amp;sectionId=1&amp;subCategoryId=0"]
["Solid Hardwood","Prefinished Bellawood","BELLAWOOD","3/4\" x 3-1/4\" Select Birch, Clear Finish, Select",7.49,5.49,"/catalog/product.jsp?productId=1499&amp;categoryId=348&amp;sectionId=1&amp;subCategoryId=0"]
["Solid Hardwood","Prefinished Bellawood","BELLAWOOD","3/4\" x 2-1/4\" Natural American Cherry, Clear Finish, Natural",7.95,4.3899999999999997,"/catalog/product.jsp?productId=1500&amp;categoryId=348&amp;sectionId=1&amp;subCategoryId=0"]
["Solid Hardwood","Prefinished Bellawood","BELLAWOOD","3/4\" x 3-1/4\" Select American Cherry, Clear Finish, Select",8.9499999999999993,5.09,"/catalog/product.jsp?productId=1503&amp;categoryId=348&amp;sectionId=1&amp;subCategoryId=0"]
["Solid Hardwood","Prefinished Bellawood","BELLAWOOD","3/4\" x 4\" Natural American Cherry, Clear Finish, Natural",8.49,4.79,"/catalog/product.jsp?productId=1504&amp;categoryId=348&amp;sectionId=1&amp;subCategoryId=0"]
["Solid Hardwood","Prefinished Bellawood","BELLAWOOD","3/4\" x 4\" Select American Cherry, Clear Finish, Select",9.9499999999999993,5.19,"/catalog/product.jsp?productId=1505&amp;categoryId=348&amp;sectionId=1&amp;subCategoryId=0"]
["Solid Hardwood","Prefinished Bellawood","BELLAWOOD","3/4\" x 5\" Natural American Cherry, Clear Finish, Natural",8.9499999999999993,5.19,"/catalog/product.jsp?productId=1506&amp;categoryId=348&amp;sectionId=1&amp;subCategoryId=0"]
["Solid Hardwood","Prefinished Bellawood","BELLAWOOD","3/4\" x 5\" Select American Cherry, Clear Finish, Select",8.9499999999999993,5.59,"/catalog/product.jsp?productId=1507&amp;categoryId=348&amp;sectionId=1&amp;subCategoryId=0"]
["Solid Hardwood","Prefinished Bellawood","BELLAWOOD","3/4\" x 4\" Natural Hickory, Clear Finish, Natural",8.49,5.29,"/catalog/product.jsp?productId=1510&amp;categoryId=348&amp;sectionId=1&amp;subCategoryId=0"]
["Solid Hardwood","Prefinished Bellawood","BELLAWOOD","3/4\" x 2-1/4\" Natural Maple, Clear Finish, Natural",7.49,4.29,"/catalog/product.jsp?productId=1512&amp;categoryId=348&amp;sectionId=1&amp;subCategoryId=0"]
["Solid Hardwood","Prefinished Bellawood","BELLAWOOD","3/4\" x 2-1/4\" Maple, Clear Finish, Rustic",6.95,3.79,"/catalog/product.jsp?productId=1513&amp;categoryId=348&amp;sectionId=1&amp;subCategoryId=0"]
["Solid Hardwood","Prefinished Bellawood","BELLAWOOD","3/4\" x 2-1/4\" Maple, Clear Finish, Select",8.49,4.6900000000000004,"/catalog/product.jsp?productId=1514&amp;categoryId=348&amp;sectionId=1&amp;subCategoryId=0"]
["Solid Hardwood","Prefinished Bellawood","BELLAWOOD","3/4\" x 3-1/4\" Natural Maple, Clear Finish, Natural",7.95,4.79,"/catalog/product.jsp?productId=1516&amp;categoryId=348&amp;sectionId=1&amp;subCategoryId=0"]
["Solid Hardwood","Prefinished Bellawood","BELLAWOOD","3/4\" x 3-1/4\" Rustic Maple, Clear Finish, Rustic",7.49,4.3899999999999997,"/catalog/product.jsp?productId=1517&amp;categoryId=348&amp;sectionId=1&amp;subCategoryId=0"]
["Solid Hardwood","Prefinished Bellawood","BELLAWOOD","3/4\" x 3-1/4\" Select Maple, Clear Finish, Select",8.9499999999999993,5.19,"/catalog/product.jsp?productId=1519&amp;categoryId=348&amp;sectionId=1&amp;subCategoryId=0"]
["Solid Hardwood","Prefinished Bellawood","BELLAWOOD","3/4\" x 4\" Natural Maple, Clear Finish, Natural",7.95,5.29,"/catalog/product.jsp?productId=1520&amp;categoryId=348&amp;sectionId=1&amp;subCategoryId=0"]
["Solid Hardwood","Prefinished Bellawood","BELLAWOOD","3/4\" x 4\" Select Maple, Clear Finish, Select",9.49,5.49,"/catalog/product.jsp?productId=1521&amp;categoryId=348&amp;sectionId=1&amp;subCategoryId=0"]
["Solid Hardwood","Prefinished Bellawood","BELLAWOOD","3/4\" x 5\" Natural Maple, Clear Finish, Natural",8.49,5.69,"/catalog/product.jsp?productId=1522&amp;categoryId=348&amp;sectionId=1&amp;subCategoryId=0"]
["Solid Hardwood","Prefinished Bellawood","BELLAWOOD","3/4\" x 5\" Select Maple, Clear Finish, Select",10.49,5.89,"/catalog/product.jsp?productId=1523&amp;categoryId=348&amp;sectionId=1&amp;subCategoryId=0"]
["Solid Hardwood","Prefinished Bellawood","BELLAWOOD","3/4\" x 2-1/4\" Natural Red Oak, Clear Finish, Natural",6.59,4.49,"/catalog/product.jsp?productId=1524&amp;categoryId=348&amp;sectionId=1&amp;subCategoryId=0"]
["Solid Hardwood","Prefinished Bellawood","BELLAWOOD","3/4\" x 2-1/4\" Rustic Red Oak, Clear Finish, Rustic",6.95,3.79,"/catalog/product.jsp?productId=1525&amp;categoryId=348&amp;sectionId=1&amp;subCategoryId=0"]
["Solid Hardwood","Prefinished Bellawood","BELLAWOOD","3/4\" x 2-1/4\" Select Red Oak, Clear Finish, Select",6.99,4.6900000000000004,"/catalog/product.jsp?productId=1526&amp;categoryId=348&amp;sectionId=1&amp;subCategoryId=0"]
["Solid Hardwood","Prefinished Bellawood","BELLAWOOD","3/4\" x 3-1/4\" Natural Red Oak, Clear Finish, Natural",7.59,4.79,"/catalog/product.jsp?productId=1528&amp;categoryId=348&amp;sectionId=1&amp;subCategoryId=0"]
["Solid Hardwood","Prefinished Bellawood","BELLAWOOD","3/4\" x 3-1/4\" Rustic Red Oak, Clear Finish, Rustic",7.49,4.6900000000000004,"/catalog/product.jsp?productId=1529&amp;categoryId=348&amp;sectionId=1&amp;subCategoryId=0"]
["Solid Hardwood","Prefinished Bellawood","BELLAWOOD","3/4\" x 3-1/4\" Select Red Oak, Clear Finish, Select",8.49,5.49,"/catalog/product.jsp?productId=1531&amp;categoryId=348&amp;sectionId=1&amp;subCategoryId=0"]
["Solid Hardwood","Prefinished Bellawood","BELLAWOOD","3/4\" x 4\" Natural Red Oak, Clear Finish, Natural",7.95,4.8899999999999997,"/catalog/product.jsp?productId=1532&amp;categoryId=348&amp;sectionId=1&amp;subCategoryId=0"]
["Solid Hardwood","Prefinished Bellawood","BELLAWOOD","3/4\" x 4\" Select Red Oak, Clear Finish, Select",8.49,5.69,"/catalog/product.jsp?productId=1533&amp;categoryId=348&amp;sectionId=1&amp;subCategoryId=0"]
["Solid Hardwood","Prefinished Bellawood","BELLAWOOD","3/4\" x 5\" Natural Red Oak, Clear Finish, Natural",7.95,4.99,"/catalog/product.jsp?productId=1534&amp;categoryId=348&amp;sectionId=1&amp;subCategoryId=0"]
["Solid Hardwood","Prefinished Bellawood","BELLAWOOD","3/4\" x 5\" Select Red Oak, Clear Finish, Select",8.9499999999999993,5.79,"/catalog/product.jsp?productId=1535&amp;categoryId=348&amp;sectionId=1&amp;subCategoryId=0"]
["Solid Hardwood","Prefinished Bellawood","BELLAWOOD","3/4\" x 2-1/4\" White Oak, Clear Finish, Natural",6.39,4.29,"/catalog/product.jsp?productId=1536&amp;categoryId=348&amp;sectionId=1&amp;subCategoryId=0"]
["Solid Hardwood","Prefinished Bellawood","BELLAWOOD","3/4\" x 3-1/4\" Natural White Oak Flooring, Clear Finish, Natural",7.49,4.49,"/catalog/product.jsp?productId=1538&amp;categoryId=348&amp;sectionId=1&amp;subCategoryId=0"]
["Solid Hardwood","Prefinished Bellawood","BELLAWOOD","3/4\" x 5-1/4\" Natural Australian Cypress, Clear Finish, Natural",8.99,6.09,"/catalog/product.jsp?productId=1542&amp;categoryId=348&amp;sectionId=1&amp;subCategoryId=0"]
["Solid Hardwood","Prefinished Bellawood","BELLAWOOD","3/4\" x 2-1/4\" Brazilian Cherry Lite, Clear Finish, Select",7.99,5.79,"/catalog/product.jsp?productId=1543&amp;categoryId=348&amp;sectionId=1&amp;subCategoryId=0"]
["Solid Hardwood","Prefinished Bellawood","BELLAWOOD","3/4\" x 2-1/4\" Brazilian Cherry, Clear Finish, Select",7.79,5.39,"/catalog/product.jsp?productId=1544&amp;categoryId=348&amp;sectionId=1&amp;subCategoryId=0"]
["Solid Hardwood","Prefinished Bellawood","BELLAWOOD","3/4\" x 3 1/4\" Brazilian Cherry Lite, Clear Finish, Select",8.9499999999999993,6.39,"/catalog/product.jsp?productId=1545&amp;categoryId=348&amp;sectionId=1&amp;subCategoryId=0"]
["Solid Hardwood","Prefinished Bellawood","BELLAWOOD","3/4\" x 3-1/4\" Brazilian Cherry, Clear Finish, Select",8.49,5.79,"/catalog/product.jsp?productId=1548&amp;categoryId=348&amp;sectionId=1&amp;subCategoryId=0"]
["Solid Hardwood","Prefinished Bellawood","BELLAWOOD","3/4\" x 2-1/4\" Brazilian Mesquite, Clear Finish, Select",7.95,5.19,"/catalog/product.jsp?productId=1554&amp;categoryId=348&amp;sectionId=1&amp;subCategoryId=0"]
["Solid Hardwood","Prefinished Bellawood","BELLAWOOD","3/4\" x 3-1/4\" Brazilian Mesquite, Clear Finish, Select",8.99,5.89,"/catalog/product.jsp?productId=1556&amp;categoryId=348&amp;sectionId=1&amp;subCategoryId=0"]
["Solid Hardwood","Prefinished Bellawood","BELLAWOOD","3/4\" x 3-1/4\" Select Bolivian Rosewood, Clear Finish, Select",8.49,6.39,"/catalog/product.jsp?productId=1560&amp;categoryId=348&amp;sectionId=1&amp;subCategoryId=0"]
["Solid Hardwood","Prefinished Bellawood","BELLAWOOD","3/4\" x 5\" Select Bolivian Rosewood, Clear Finish, Select",8.69,6.49,"/catalog/product.jsp?productId=1562&amp;categoryId=348&amp;sectionId=1&amp;subCategoryId=0"]
["Solid Hardwood","Prefinished Bellawood","BELLAWOOD","3/4\" x 2 1/4\" Brazilian Walnut, Clear Finish, Select",8.69,5.79,"/catalog/product.jsp?productId=1565&amp;categoryId=348&amp;sectionId=1&amp;subCategoryId=0"]
["Solid Hardwood","Prefinished Bellawood","BELLAWOOD","3/4\" x 3-1/4\" Brazilian Walnut, Clear Finish, Select",8.7899999999999991,6.69,"/catalog/product.jsp?productId=1567&amp;categoryId=348&amp;sectionId=1&amp;subCategoryId=0"]
["Solid Hardwood","Prefinished Bellawood","BELLAWOOD","3/4\" x 5\" Brazilian Walnut, Clear Finish, Select",9.49,6.89,"/catalog/product.jsp?productId=1568&amp;categoryId=348&amp;sectionId=1&amp;subCategoryId=0"]
["Solid Hardwood","Prefinished Bellawood","BELLAWOOD","3/4\" x 2-1/4\" Golden Teak, Clear Finish, Select",7.95,5.89,"/catalog/product.jsp?productId=1569&amp;categoryId=348&amp;sectionId=1&amp;subCategoryId=0"]
["Solid Hardwood","Prefinished Bellawood","BELLAWOOD","3/4\" x 2-1/4\" Brazilian Koa, Clear Finish, Select",7.95,5.59,"/catalog/product.jsp?productId=1572&amp;categoryId=348&amp;sectionId=1&amp;subCategoryId=0"]
["Solid Hardwood","Prefinished Bellawood","BELLAWOOD","3/4\" x 3-1/4\" Select Santos Mahogany, Clear Finish, Select",10.95,7.39,"/catalog/product.jsp?productId=1582&amp;categoryId=348&amp;sectionId=1&amp;subCategoryId=0"]
["Solid Hardwood","Prefinished Bellawood","BELLAWOOD","3/4\" x 5\" Santos Mahogany, Clear Finish, Select",11.95,7.79,"/catalog/product.jsp?productId=1584&amp;categoryId=348&amp;sectionId=1&amp;subCategoryId=0"]
["Solid Hardwood","Prefinished Bellawood","BELLAWOOD","3/4\" x 2 1/4\" American Walnut, Clear Finish, Natural",8.9499999999999993,6.59,"/catalog/product.jsp?productId=2083&amp;categoryId=348&amp;sectionId=1&amp;subCategoryId=0"]
["Solid Hardwood","Prefinished Bellawood","BELLAWOOD","3/4\" x 3-1/4\" Brazilian Teak, Clear Finish, Select",8.49,6.49,"/catalog/product.jsp?productId=2963&amp;categoryId=348&amp;sectionId=1&amp;subCategoryId=0"]
["Solid Hardwood","Prefinished Bellawood","BELLAWOOD","3/4\" x 5\" Brazilian Teak, Clear Finish, Select",8.9499999999999993,6.59,"/catalog/product.jsp?productId=2965&amp;categoryId=348&amp;sectionId=1&amp;subCategoryId=0"]
["Solid Hardwood","Prefinished Bellawood","BELLAWOOD","3/4\" x 4\" Natural Birch, Clear Finish, Natural",7.49,4.79,"/catalog/product.jsp?productId=2996&amp;categoryId=348&amp;sectionId=1&amp;subCategoryId=0"]
["Solid Hardwood","Prefinished Bellawood","BELLAWOOD","3/4\" x 3-1/4\" Brazilian Redwood, Clear Finish, Select",8.39,6.09,"/catalog/product.jsp?productId=3200&amp;categoryId=348&amp;sectionId=1&amp;subCategoryId=0"]
["Solid Hardwood","Prefinished Domestic","BELLAWOOD","3/8\" x 3\" Natural Maple, Clear Finish, Natural",7.29,4.1900000000000004,"/catalog/product.jsp?productId=1515&amp;categoryId=5&amp;sectionId=1&amp;subCategoryId=0"]
["Solid Hardwood","Prefinished Domestic","BELLAWOOD","3/8\" x 3\" Select Maple, Clear Finish, Select",7.49,4.3899999999999997,"/catalog/product.jsp?productId=1518&amp;categoryId=5&amp;sectionId=1&amp;subCategoryId=0"]
["Solid Hardwood","Prefinished Domestic","BELLAWOOD","3/8\" x 3\" Natural Red Oak, Clear Finish, Natural",7.29,4.29,"/catalog/product.jsp?productId=1527&amp;categoryId=5&amp;sectionId=1&amp;subCategoryId=0"]
["Solid Hardwood","Prefinished Domestic","BELLAWOOD","3/8\" x 3\" Select Red Oak, Clear Finish, Select",7.79,4.49,"/catalog/product.jsp?productId=1530&amp;categoryId=5&amp;sectionId=1&amp;subCategoryId=0"]
["Solid Hardwood","Prefinished Domestic","BELLAWOOD","3/4\" x 2-1/4\" Natural Ash, Clear Finish, Natural",4.79,3.99,"/catalog/product.jsp?productId=1477&amp;categoryId=5&amp;sectionId=1&amp;subCategoryId=0"]
["Solid Hardwood","Prefinished Domestic","BELLAWOOD","3/4\" x 2-1/4\" Select Ash, Clear Finish, Select",7.45,4.29,"/catalog/product.jsp?productId=1478&amp;categoryId=5&amp;sectionId=1&amp;subCategoryId=0"]
["Solid Hardwood","Prefinished Domestic","BELLAWOOD","3/4\" x 3-1/4\" Natural Ash, Clear Finish, Natural",5.99,4.29,"/catalog/product.jsp?productId=1479&amp;categoryId=5&amp;sectionId=1&amp;subCategoryId=0"]
["Solid Hardwood","Prefinished Domestic","BELLAWOOD","3/4\" x 3-1/4\" Select Ash, Clear Finish, Select",7.95,4.99,"/catalog/product.jsp?productId=1480&amp;categoryId=5&amp;sectionId=1&amp;subCategoryId=0"]
["Solid Hardwood","Prefinished Domestic","BELLAWOOD","3/4\" x 4\" Natural Ash, Clear Finish, Natural",7.99,4.49,"/catalog/product.jsp?productId=1481&amp;categoryId=5&amp;sectionId=1&amp;subCategoryId=0"]
["Solid Hardwood","Prefinished Domestic","BELLAWOOD","3/4\" x 4\" Select Ash, Clear Finish, Select",8.4499999999999993,5.29,"/catalog/product.jsp?productId=1482&amp;categoryId=5&amp;sectionId=1&amp;subCategoryId=0"]
["Solid Hardwood","Prefinished Domestic","BELLAWOOD","3/4\" x 5\" Natural Ash, Clear Finish, Natural",7.95,4.6900000000000004,"/catalog/product.jsp?productId=1483&amp;categoryId=5&amp;sectionId=1&amp;subCategoryId=0"]
["Solid Hardwood","Prefinished Domestic","BELLAWOOD","3/4\" x 5\" Select Ash, Clear Finish, Select",7.95,5.59,"/catalog/product.jsp?productId=1484&amp;categoryId=5&amp;sectionId=1&amp;subCategoryId=0"]
["Solid Hardwood","Prefinished Domestic","BELLAWOOD","3/4\" x 3\" Natural American Walnut, Clear Finish, Natural",9.9499999999999993,6.99,"/catalog/product.jsp?productId=1485&amp;categoryId=5&amp;sectionId=1&amp;subCategoryId=0"]
["Solid Hardwood","Prefinished Domestic","BELLAWOOD","3/4\" x 4\" American Walnut, Clear Finish, Natural",9.9499999999999993,6.99,"/catalog/product.jsp?productId=1486&amp;categoryId=5&amp;sectionId=1&amp;subCategoryId=0"]
["Solid Hardwood","Prefinished Domestic","BELLAWOOD","3/4\" x 5\" Natural American Walnut, Clear Finish, Natural",10.95,7.49,"/catalog/product.jsp?productId=1487&amp;categoryId=5&amp;sectionId=1&amp;subCategoryId=0"]
["Solid Hardwood","Prefinished Domestic","BELLAWOOD","3/4\" x 2-1/4\" Select Birdseye Maple, Clear Finish, Select",10.95,7.29,"/catalog/product.jsp?productId=1489&amp;categoryId=5&amp;sectionId=1&amp;subCategoryId=0"]
["Solid Hardwood","Prefinished Domestic","BELLAWOOD","3/4\" x 3-1/4\" Select Birdseye Maple, Clear Finish, Select",10.95,7.49,"/catalog/product.jsp?productId=1491&amp;categoryId=5&amp;sectionId=1&amp;subCategoryId=0"]
["Solid Hardwood","Prefinished Domestic","BELLAWOOD","3/4\" x 2-1/4\" Natural Beech, Clear Finish, Natural",7.29,4.6900000000000004,"/catalog/product.jsp?productId=1492&amp;categoryId=5&amp;sectionId=1&amp;subCategoryId=0"]
["Solid Hardwood","Prefinished Domestic","BELLAWOOD","3/4\" x 2-1/4\" Select Beech, Clear Finish, Select",7.95,4.99,"/catalog/product.jsp?productId=1493&amp;categoryId=5&amp;sectionId=1&amp;subCategoryId=0"]
["Solid Hardwood","Prefinished Domestic","BELLAWOOD","3/4\" x 3-1/4\" Natural Beech, Clear Finish, Natural",7.39,4.6900000000000004,"/catalog/product.jsp?productId=1494&amp;categoryId=5&amp;sectionId=1&amp;subCategoryId=0"]
["Solid Hardwood","Prefinished Domestic","BELLAWOOD","3/4\" x 3-1/4\" Select Beech, Clear Finish, Select",8.49,5.49,"/catalog/product.jsp?productId=1495&amp;categoryId=5&amp;sectionId=1&amp;subCategoryId=0"]
["Solid Hardwood","Prefinished Domestic","BELLAWOOD","3/4\" x 2-1/4\" Natural Birch, Clear Finish, Natural",7.49,4.29,"/catalog/product.jsp?productId=1496&amp;categoryId=5&amp;sectionId=1&amp;subCategoryId=0"]
["Solid Hardwood","Prefinished Domestic","BELLAWOOD","3/4\" x 2-1/4\" Select Birch, Clear Finish, Select",7.39,4.6900000000000004,"/catalog/product.jsp?productId=1497&amp;categoryId=5&amp;sectionId=1&amp;subCategoryId=0"]
["Solid Hardwood","Prefinished Domestic","BELLAWOOD","3/4\" x 3-1/4\" Natural Birch, Clear Finish, Natural",7.45,4.79,"/catalog/product.jsp?productId=1498&amp;categoryId=5&amp;sectionId=1&amp;subCategoryId=0"]
["Solid Hardwood","Prefinished Domestic","BELLAWOOD","3/4\" x 3-1/4\" Select Birch, Clear Finish, Select",7.49,5.49,"/catalog/product.jsp?productId=1499&amp;categoryId=5&amp;sectionId=1&amp;subCategoryId=0"]
["Solid Hardwood","Prefinished Domestic","BELLAWOOD","3/4\" x 2-1/4\" Natural American Cherry, Clear Finish, Natural",7.95,4.3899999999999997,"/catalog/product.jsp?productId=1500&amp;categoryId=5&amp;sectionId=1&amp;subCategoryId=0"]
["Solid Hardwood","Prefinished Domestic","BELLAWOOD","3/4\" x 2-1/4\" Select American Cherry, Clear Finish, Select",7.95,4.79,"/catalog/product.jsp?productId=1501&amp;categoryId=5&amp;sectionId=1&amp;subCategoryId=0"]
["Solid Hardwood","Prefinished Domestic","BELLAWOOD","3/4\" x 3-1/4\" Natural American Cherry, Clear Finish, Natural",7.95,4.59,"/catalog/product.jsp?productId=1502&amp;categoryId=5&amp;sectionId=1&amp;subCategoryId=0"]
["Solid Hardwood","Prefinished Domestic","BELLAWOOD","3/4\" x 3-1/4\" Select American Cherry, Clear Finish, Select",8.9499999999999993,5.09,"/catalog/product.jsp?productId=1503&amp;categoryId=5&amp;sectionId=1&amp;subCategoryId=0"]
["Solid Hardwood","Prefinished Domestic","BELLAWOOD","3/4\" x 4\" Natural American Cherry, Clear Finish, Natural",8.49,4.79,"/catalog/product.jsp?productId=1504&amp;categoryId=5&amp;sectionId=1&amp;subCategoryId=0"]
["Solid Hardwood","Prefinished Domestic","BELLAWOOD","3/4\" x 4\" Select American Cherry, Clear Finish, Select",9.9499999999999993,5.19,"/catalog/product.jsp?productId=1505&amp;categoryId=5&amp;sectionId=1&amp;subCategoryId=0"]
["Solid Hardwood","Prefinished Domestic","BELLAWOOD","3/4\" x 5\" Natural American Cherry, Clear Finish, Natural",8.9499999999999993,5.19,"/catalog/product.jsp?productId=1506&amp;categoryId=5&amp;sectionId=1&amp;subCategoryId=0"]
["Solid Hardwood","Prefinished Domestic","BELLAWOOD","3/4\" x 5\" Select American Cherry, Clear Finish, Select",8.9499999999999993,5.59,"/catalog/product.jsp?productId=1507&amp;categoryId=5&amp;sectionId=1&amp;subCategoryId=0"]
["Solid Hardwood","Prefinished Domestic","BELLAWOOD","3/4\" x 2-1/4\" Natural Hickory, Clear Finish, Natural",7.95,4.6900000000000004,"/catalog/product.jsp?productId=1508&amp;categoryId=5&amp;sectionId=1&amp;subCategoryId=0"]
["Solid Hardwood","Prefinished Domestic","BELLAWOOD","3/4\" x 3\" Natural Hickory, Clear Finish, Natural",7.49,5.09,"/catalog/product.jsp?productId=1509&amp;categoryId=5&amp;sectionId=1&amp;subCategoryId=0"]
["Solid Hardwood","Prefinished Domestic","BELLAWOOD","3/4\" x 4\" Natural Hickory, Clear Finish, Natural",8.49,5.29,"/catalog/product.jsp?productId=1510&amp;categoryId=5&amp;sectionId=1&amp;subCategoryId=0"]
["Solid Hardwood","Prefinished Domestic","BELLAWOOD","3/4\" x 5\" Natural Hickory, Clear Finish, Natural",8.9499999999999993,5.49,"/catalog/product.jsp?productId=1511&amp;categoryId=5&amp;sectionId=1&amp;subCategoryId=0"]
["Solid Hardwood","Prefinished Domestic","BELLAWOOD","3/4\" x 2-1/4\" Natural Maple, Clear Finish, Natural",7.49,4.29,"/catalog/product.jsp?productId=1512&amp;categoryId=5&amp;sectionId=1&amp;subCategoryId=0"]
["Solid Hardwood","Prefinished Domestic","BELLAWOOD","3/4\" x 2-1/4\" Maple, Clear Finish, Rustic",6.95,3.79,"/catalog/product.jsp?productId=1513&amp;categoryId=5&amp;sectionId=1&amp;subCategoryId=0"]
["Solid Hardwood","Prefinished Domestic","BELLAWOOD","3/4\" x 2-1/4\" Maple, Clear Finish, Select",8.49,4.6900000000000004,"/catalog/product.jsp?productId=1514&amp;categoryId=5&amp;sectionId=1&amp;subCategoryId=0"]
["Solid Hardwood","Prefinished Domestic","BELLAWOOD","3/4\" x 3-1/4\" Natural Maple, Clear Finish, Natural",7.95,4.79,"/catalog/product.jsp?productId=1516&amp;categoryId=5&amp;sectionId=1&amp;subCategoryId=0"]
["Solid Hardwood","Prefinished Domestic","BELLAWOOD","3/4\" x 3-1/4\" Rustic Maple, Clear Finish, Rustic",7.49,4.3899999999999997,"/catalog/product.jsp?productId=1517&amp;categoryId=5&amp;sectionId=1&amp;subCategoryId=0"]
["Solid Hardwood","Prefinished Domestic","BELLAWOOD","3/4\" x 3-1/4\" Select Maple, Clear Finish, Select",8.9499999999999993,5.19,"/catalog/product.jsp?productId=1519&amp;categoryId=5&amp;sectionId=1&amp;subCategoryId=0"]
["Solid Hardwood","Prefinished Domestic","BELLAWOOD","3/4\" x 4\" Natural Maple, Clear Finish, Natural",7.95,5.29,"/catalog/product.jsp?productId=1520&amp;categoryId=5&amp;sectionId=1&amp;subCategoryId=0"]
["Solid Hardwood","Prefinished Domestic","BELLAWOOD","3/4\" x 4\" Select Maple, Clear Finish, Select",9.49,5.49,"/catalog/product.jsp?productId=1521&amp;categoryId=5&amp;sectionId=1&amp;subCategoryId=0"]
["Solid Hardwood","Prefinished Domestic","BELLAWOOD","3/4\" x 5\" Natural Maple, Clear Finish, Natural",8.49,5.69,"/catalog/product.jsp?productId=1522&amp;categoryId=5&amp;sectionId=1&amp;subCategoryId=0"]
["Solid Hardwood","Prefinished Domestic","BELLAWOOD","3/4\" x 5\" Select Maple, Clear Finish, Select",10.49,5.89,"/catalog/product.jsp?productId=1523&amp;categoryId=5&amp;sectionId=1&amp;subCategoryId=0"]
["Solid Hardwood","Prefinished Domestic","BELLAWOOD","3/4\" x 2-1/4\" Natural Red Oak, Clear Finish, Natural",6.59,4.49,"/catalog/product.jsp?productId=1524&amp;categoryId=5&amp;sectionId=1&amp;subCategoryId=0"]
["Solid Hardwood","Prefinished Domestic","BELLAWOOD","3/4\" x 2-1/4\" Rustic Red Oak, Clear Finish, Rustic",6.95,3.79,"/catalog/product.jsp?productId=1525&amp;categoryId=5&amp;sectionId=1&amp;subCategoryId=0"]
["Solid Hardwood","Prefinished Domestic","BELLAWOOD","3/4\" x 2-1/4\" Select Red Oak, Clear Finish, Select",6.99,4.6900000000000004,"/catalog/product.jsp?productId=1526&amp;categoryId=5&amp;sectionId=1&amp;subCategoryId=0"]
["Solid Hardwood","Prefinished Domestic","BELLAWOOD","3/4\" x 3-1/4\" Natural Red Oak, Clear Finish, Natural",7.59,4.79,"/catalog/product.jsp?productId=1528&amp;categoryId=5&amp;sectionId=1&amp;subCategoryId=0"]
["Solid Hardwood","Prefinished Domestic","BELLAWOOD","3/4\" x 3-1/4\" Rustic Red Oak, Clear Finish, Rustic",7.49,4.6900000000000004,"/catalog/product.jsp?productId=1529&amp;categoryId=5&amp;sectionId=1&amp;subCategoryId=0"]
["Solid Hardwood","Prefinished Domestic","BELLAWOOD","3/4\" x 3-1/4\" Select Red Oak, Clear Finish, Select",8.49,5.49,"/catalog/product.jsp?productId=1531&amp;categoryId=5&amp;sectionId=1&amp;subCategoryId=0"]
["Solid Hardwood","Prefinished Domestic","BELLAWOOD","3/4\" x 4\" Natural Red Oak, Clear Finish, Natural",7.95,4.8899999999999997,"/catalog/product.jsp?productId=1532&amp;categoryId=5&amp;sectionId=1&amp;subCategoryId=0"]
["Solid Hardwood","Prefinished Domestic","BELLAWOOD","3/4\" x 4\" Select Red Oak, Clear Finish, Select",8.49,5.69,"/catalog/product.jsp?productId=1533&amp;categoryId=5&amp;sectionId=1&amp;subCategoryId=0"]
["Solid Hardwood","Prefinished Domestic","BELLAWOOD","3/4\" x 5\" Natural Red Oak, Clear Finish, Natural",7.95,4.99,"/catalog/product.jsp?productId=1534&amp;categoryId=5&amp;sectionId=1&amp;subCategoryId=0"]
["Solid Hardwood","Prefinished Domestic","BELLAWOOD","3/4\" x 5\" Select Red Oak, Clear Finish, Select",8.9499999999999993,5.79,"/catalog/product.jsp?productId=1535&amp;categoryId=5&amp;sectionId=1&amp;subCategoryId=0"]
["Solid Hardwood","Prefinished Domestic","BELLAWOOD","3/4\" x 2-1/4\" White Oak, Clear Finish, Natural",6.39,4.29,"/catalog/product.jsp?productId=1536&amp;categoryId=5&amp;sectionId=1&amp;subCategoryId=0"]
["Solid Hardwood","Prefinished Domestic","BELLAWOOD","3/4\" x 2-1/4\" White Oak, Clear Finish, Select",6.79,4.79,"/catalog/product.jsp?productId=1537&amp;categoryId=5&amp;sectionId=1&amp;subCategoryId=0"]
["Solid Hardwood","Prefinished Domestic","BELLAWOOD","3/4\" x 3-1/4\" Natural White Oak Flooring, Clear Finish, Natural",7.49,4.49,"/catalog/product.jsp?productId=1538&amp;categoryId=5&amp;sectionId=1&amp;subCategoryId=0"]
["Solid Hardwood","Prefinished Domestic","BELLAWOOD","3/4\" x 3-1/4\" Select White Oak, Clear Finish, Select",7.95,4.99,"/catalog/product.jsp?productId=1539&amp;categoryId=5&amp;sectionId=1&amp;subCategoryId=0"]
["Solid Hardwood","Prefinished Domestic","Clover Lea","3/4\" x 5\" Savannah Gold Heart Pine, Clear Finish, Natural",5.59,3.79,"/catalog/product.jsp?productId=1594&amp;categoryId=5&amp;sectionId=1&amp;subCategoryId=0"]
["Solid Hardwood","Prefinished Domestic","Clover Lea","3/4\" x 5\" Natural Heart Pine, Clear Finish, Natural",5.95,3.79,"/catalog/product.jsp?productId=1603&amp;categoryId=5&amp;sectionId=1&amp;subCategoryId=0"]
["Solid Hardwood","Prefinished Domestic","Builder's Pride","3/4\" x 2 1/4\" Red Oak, Clear Finish, Natural",5.89,3.49,"/catalog/product.jsp?productId=1612&amp;categoryId=5&amp;sectionId=1&amp;subCategoryId=0"]
["Solid Hardwood","Prefinished Domestic","Builder's Pride","3/4\" x 2 1/4\" Red Oak, Clear Finish, Select",6.19,3.79,"/catalog/product.jsp?productId=1613&amp;categoryId=5&amp;sectionId=1&amp;subCategoryId=0"]
["Solid Hardwood","Prefinished Domestic","Builder's Pride","3/4\" x 4\" Red Oak, Clear Finish, Natural",6.19,4.09,"/catalog/product.jsp?productId=1616&amp;categoryId=5&amp;sectionId=1&amp;subCategoryId=0"]
["Solid Hardwood","Prefinished Domestic","Builder's Pride","3/4\" x 4\" Red Oak, Clear Finish, Select",6.65,4.1900000000000004,"/catalog/product.jsp?productId=1617&amp;categoryId=5&amp;sectionId=1&amp;subCategoryId=0"]
["Solid Hardwood","Prefinished Domestic","BELLAWOOD","3/4\" x 2 1/4\" American Walnut, Clear Finish, Natural",8.9499999999999993,6.59,"/catalog/product.jsp?productId=2083&amp;categoryId=5&amp;sectionId=1&amp;subCategoryId=0"]
["Solid Hardwood","Prefinished Domestic","BELLAWOOD","3/4\" x 4\" Natural Birch, Clear Finish, Natural",7.49,4.79,"/catalog/product.jsp?productId=2996&amp;categoryId=5&amp;sectionId=1&amp;subCategoryId=0"]
["Solid Hardwood","Prefinished Domestic","BELLAWOOD","3/4\" x 4\" Select Birch, Clear Finish, Select",8.49,5.49,"/catalog/product.jsp?productId=2998&amp;categoryId=5&amp;sectionId=1&amp;subCategoryId=0"]
["Solid Hardwood","Prefinished Domestic","Clover Lea","3/4\" x 5\" Charleston Chestnut Heart Pine, Stained Finish, Natural",4.95,3.79,"/catalog/product.jsp?productId=3006&amp;categoryId=5&amp;sectionId=1&amp;subCategoryId=0"]
["Solid Hardwood","Prefinished Domestic","Ty Pennington Hardwood","3/4\" x 5\" Eleuthera Natural Ash, Stained Finish, Natural",8.9499999999999993,5.49,"/catalog/product.jsp?productId=3231&amp;categoryId=5&amp;sectionId=1&amp;subCategoryId=0"]
["Solid Hardwood","Prefinished Domestic","Ty Pennington Hardwood","3/4\" x 5\" Natural Mauna Loa Ash, Stained Finish, Natural",8.9499999999999993,5.49,"/catalog/product.jsp?productId=3232&amp;categoryId=5&amp;sectionId=1&amp;subCategoryId=0"]
["Solid Hardwood","Prefinished Domestic","Ty Pennington Hardwood","3/4\"x 5\" Natural Sunset Ash, Stained Finish, Natural",8.9499999999999993,5.49,"/catalog/product.jsp?productId=3233&amp;categoryId=5&amp;sectionId=1&amp;subCategoryId=0"]
["Solid Hardwood","Prefinished Domestic","Ty Pennington Hardwood","3/4\" x 2-1/4\" Birdseye Maple, Clear Finish, Natural",8.9499999999999993,5.49,"/catalog/product.jsp?productId=3237&amp;categoryId=5&amp;sectionId=1&amp;subCategoryId=0"]
["Solid Hardwood","Prefinished Domestic","Ty Pennington Hardwood","3/4\" x 3-1/4\" Birdseye Maple, Clear Finish, Natural",9.9499999999999993,6.49,"/catalog/product.jsp?productId=3238&amp;categoryId=5&amp;sectionId=1&amp;subCategoryId=0"]
["Solid Hardwood","Prefinished Domestic","BELLAWOOD","3/4\" x 5\" Rustic Red Oak, Clear Finish, Rustic",8.49,4.59,"/catalog/product.jsp?productId=5849&amp;categoryId=5&amp;sectionId=1&amp;subCategoryId=0"]
["Solid Hardwood","Prefinished Domestic","BELLAWOOD","3/4\" x 6\" Rustic Red Oak, Clear Finish, Rustic",8.99,5.99,"/catalog/product.jsp?productId=6166&amp;categoryId=5&amp;sectionId=1&amp;subCategoryId=0"]
["Solid Hardwood","Prefinished Domestic","Durawood","3/4\" x 3-1/4\" Red Oak, Clear Finish, Natural",6.35,3.79,"/catalog/product.jsp?productId=6831&amp;categoryId=5&amp;sectionId=1&amp;subCategoryId=0"]
["Solid Hardwood","Prefinished Domestic","Durawood","3/4\" x 3-1/4\" Red Oak, Clear Finish, Select",6.65,4.29,"/catalog/product.jsp?productId=6832&amp;categoryId=5&amp;sectionId=1&amp;subCategoryId=0"]
["Solid Hardwood","Prefinished Domestic","Builder's Pride","3/4\" X 4-1/4\" Select Maple Flooring, Clear Finish, Select",7.09,4.09,"/catalog/product.jsp?productId=6925&amp;categoryId=5&amp;sectionId=1&amp;subCategoryId=0"]
["Solid Hardwood","Prefinished Domestic","Builder's Pride","3/4\" x 3-1/4\" Hickory, Clear Finish, Natural",7.29,3.99,"/catalog/product.jsp?productId=7599&amp;categoryId=5&amp;sectionId=1&amp;subCategoryId=0"]
["Solid Hardwood","Prefinished Exotic","BELLAWOOD","3/4\" x 3-1/4\" Natural Australian Cypress, Clear Finish, Natural",8.69,4.6900000000000004,"/catalog/product.jsp?productId=1541&amp;categoryId=41&amp;sectionId=1&amp;subCategoryId=0"]
["Solid Hardwood","Prefinished Exotic","BELLAWOOD","3/8\" x 3\" Brazilian Cherry, Clear Finish, Select",7.29,4.8899999999999997,"/catalog/product.jsp?productId=1547&amp;categoryId=41&amp;sectionId=1&amp;subCategoryId=0"]
["Solid Hardwood","Prefinished Exotic","BELLAWOOD","3/4\" x 5\" Brazilian Cherry, Clear Finish, Select",8.99,5.89,"/catalog/product.jsp?productId=1550&amp;categoryId=41&amp;sectionId=1&amp;subCategoryId=0"]
["Solid Hardwood","Prefinished Exotic","BELLAWOOD","3/4\" x 3-1/4\" Select Golden Teak, Clear Finish, Select",7.59,6.19,"/catalog/product.jsp?productId=1571&amp;categoryId=41&amp;sectionId=1&amp;subCategoryId=0"]
["Solid Hardwood","Prefinished Exotic","BELLAWOOD","3/8\" x 3\" Select Brazilian Koa, Clear Finish, Select",7.29,5.09,"/catalog/product.jsp?productId=1573&amp;categoryId=41&amp;sectionId=1&amp;subCategoryId=0"]
["Solid Hardwood","Prefinished Exotic","BELLAWOOD","3/4\" x 3-1/4\" Brazilian Koa, Clear Finish, Select",8.4499999999999993,6.19,"/catalog/product.jsp?productId=1574&amp;categoryId=41&amp;sectionId=1&amp;subCategoryId=0"]
["Solid Hardwood","Prefinished Exotic","BELLAWOOD","3/4\" x 5\" Brazilian Koa Flooring, Clear Finish, Select",9.9499999999999993,6.39,"/catalog/product.jsp?productId=1575&amp;categoryId=41&amp;sectionId=1&amp;subCategoryId=0"]
["Solid Hardwood","Prefinished Exotic","BELLAWOOD","5/16\" x 2-1/4\" Select Brazilian Koa, Clear Finish, Select",6.45,4.09,"/catalog/product.jsp?productId=3198&amp;categoryId=41&amp;sectionId=1&amp;subCategoryId=0"]
["Solid Hardwood","Prefinished Exotic","BELLAWOOD","5/16\" x 2-1/4\" Select Brazilian Mesquite, Clear Finish, Select",6.45,3.99,"/catalog/product.jsp?productId=3457&amp;categoryId=41&amp;sectionId=1&amp;subCategoryId=0"]
["Solid Hardwood","Prefinished Exotic","BELLAWOOD","5/16\" x 2-1/4\" Select Brazilian Cherry, Clear Finish, Select",6.45,3.89,"/catalog/product.jsp?productId=2961&amp;categoryId=41&amp;sectionId=1&amp;subCategoryId=0"]
["Solid Hardwood","Prefinished Exotic","BELLAWOOD","5/16\" x 2-1/4\" Select Brazilian Walnut, Clear Finish, Select",6.45,4.1900000000000004,"/catalog/product.jsp?productId=3067&amp;categoryId=41&amp;sectionId=1&amp;subCategoryId=0"]
["Solid Hardwood","Prefinished Exotic","BELLAWOOD","5/16\" x 2-1/4\" Select Golden Teak, Clear Finish, Select",6.45,4.09,"/catalog/product.jsp?productId=3216&amp;categoryId=41&amp;sectionId=1&amp;subCategoryId=0"]
["Solid Hardwood","Prefinished Exotic","BELLAWOOD","5/16\" x 2-1/4\" Select Brazilian Teak, Clear Finish, Select",5.99,2.99,"/catalog/product.jsp?productId=3519&amp;categoryId=41&amp;sectionId=1&amp;subCategoryId=0"]
["Solid Hardwood","Prefinished Exotic","BELLAWOOD","5/16\" x 2-1/4\" Select Brazilian Redwood, Clear Finish, Select",6.45,4.1900000000000004,"/catalog/product.jsp?productId=4337&amp;categoryId=41&amp;sectionId=1&amp;subCategoryId=0"]
["Solid Hardwood","Prefinished Exotic","BELLAWOOD","5/16\" x 2-1/4\" Select Brazilian Chestnut, Clear Finish, Select",5.99,4.09,"/catalog/product.jsp?productId=5596&amp;categoryId=41&amp;sectionId=1&amp;subCategoryId=0"]
["Solid Hardwood","Prefinished Exotic","BELLAWOOD","5/16\" x 3\" Brazilian Mesquite, Clear Finish, Select",6.45,4.1900000000000004,"/catalog/product.jsp?productId=6859&amp;categoryId=41&amp;sectionId=1&amp;subCategoryId=0"]
["Solid Hardwood","Prefinished Exotic","BELLAWOOD","5/16\" x 3\" Brazilian Koa, Clear Finish, Select",6.45,4.1900000000000004,"/catalog/product.jsp?productId=6924&amp;categoryId=41&amp;sectionId=1&amp;subCategoryId=0"]
["Solid Hardwood","Prefinished Exotic","BELLAWOOD","5/16\" x 3\" Brazilian Teak Select, Clear Finish, Select",5.99,4.29,"/catalog/product.jsp?productId=6998&amp;categoryId=41&amp;sectionId=1&amp;subCategoryId=0"]
["Solid Hardwood","Prefinished Exotic","BELLAWOOD","5/16\" x 3\" Select Golden Teak, Clear Finish, Select",6.45,4.1900000000000004,"/catalog/product.jsp?productId=7010&amp;categoryId=41&amp;sectionId=1&amp;subCategoryId=0"]
["Solid Hardwood","Prefinished Exotic","BELLAWOOD","3/8\" x 3\" Select Brazilian Mesquite, Clear Finish, Select",7.29,4.99,"/catalog/product.jsp?productId=1555&amp;categoryId=41&amp;sectionId=1&amp;subCategoryId=0"]
["Solid Hardwood","Prefinished Exotic","BELLAWOOD","3/8\" x 3\" Select Bolivian Rosewood, Clear Finish, Select",5.99,5.09,"/catalog/product.jsp?productId=1559&amp;categoryId=41&amp;sectionId=1&amp;subCategoryId=0"]
["Solid Hardwood","Prefinished Exotic","BELLAWOOD","3/8\" x 3\" Brazilian Teak, Clear Finish, Select",7.49,5.19,"/catalog/product.jsp?productId=1564&amp;categoryId=41&amp;sectionId=1&amp;subCategoryId=0"]
["Solid Hardwood","Prefinished Exotic","BELLAWOOD","3/8\" x 3\" Brazilian Walnut, Clear Finish, Select",7.59,5.79,"/catalog/product.jsp?productId=1566&amp;categoryId=41&amp;sectionId=1&amp;subCategoryId=0"]
["Solid Hardwood","Prefinished Exotic","BELLAWOOD","3/8\" x 3\" Golden Teak, Clear Finish, Select",7.69,5.19,"/catalog/product.jsp?productId=1570&amp;categoryId=41&amp;sectionId=1&amp;subCategoryId=0"]
["Solid Hardwood","Prefinished Exotic","BELLAWOOD","3/8\" x 3\" Select Purple Heart, Clear Finish, Select",7.95,4.49,"/catalog/product.jsp?productId=1578&amp;categoryId=41&amp;sectionId=1&amp;subCategoryId=0"]
["Solid Hardwood","Prefinished Exotic","BELLAWOOD","3/8\" x 3\" Select Santos Mahogany, Clear Finish, Select",8.69,5.89,"/catalog/product.jsp?productId=1581&amp;categoryId=41&amp;sectionId=1&amp;subCategoryId=0"]
["Solid Hardwood","Prefinished Exotic","BELLAWOOD","3/8\" x 3\" Select Brazilian Redwood, Clear Finish, Select",7.29,4.8899999999999997,"/catalog/product.jsp?productId=3218&amp;categoryId=41&amp;sectionId=1&amp;subCategoryId=0"]
["Solid Hardwood","Prefinished Exotic","BELLAWOOD","3/8\" x 3\" Select Brazilian Chestnut, Clear Finish, Select",7.59,4.6900000000000004,"/catalog/product.jsp?productId=5847&amp;categoryId=41&amp;sectionId=1&amp;subCategoryId=0"]
["Solid Hardwood","Prefinished Exotic","BELLAWOOD","1/2\" x 3-1/4\" Natural Australian Cypress, Clear Finish, Natural",6.89,4.79,"/catalog/product.jsp?productId=1540&amp;categoryId=41&amp;sectionId=1&amp;subCategoryId=0"]
["Solid Hardwood","Prefinished Exotic","BELLAWOOD","1/2\" x 3\" Brazilian Cherry Lite, Clear Finish, Select",7.49,4.8899999999999997,"/catalog/product.jsp?productId=1546&amp;categoryId=41&amp;sectionId=1&amp;subCategoryId=0"]
["Solid Hardwood","Prefinished Exotic","Builder's Pride","9/16\" x 3\" Brazilian Cherry, Clear Finish, Select",5.39,4.59,"/catalog/product.jsp?productId=5624&amp;categoryId=41&amp;sectionId=1&amp;subCategoryId=0"]
["Solid Hardwood","Prefinished Exotic","BELLAWOOD","3/4\" x 5-1/4\" Natural Australian Cypress, Clear Finish, Natural",8.99,6.09,"/catalog/product.jsp?productId=1542&amp;categoryId=41&amp;sectionId=1&amp;subCategoryId=0"]
["Solid Hardwood","Prefinished Exotic","BELLAWOOD","3/4\" x 2-1/4\" Brazilian Cherry Lite, Clear Finish, Select",7.99,5.79,"/catalog/product.jsp?productId=1543&amp;categoryId=41&amp;sectionId=1&amp;subCategoryId=0"]
["Solid Hardwood","Prefinished Exotic","BELLAWOOD","3/4\" x 2-1/4\" Brazilian Cherry, Clear Finish, Select",7.79,5.39,"/catalog/product.jsp?productId=1544&amp;categoryId=41&amp;sectionId=1&amp;subCategoryId=0"]
["Solid Hardwood","Prefinished Exotic","BELLAWOOD","3/4\" x 3 1/4\" Brazilian Cherry Lite, Clear Finish, Select",8.9499999999999993,6.39,"/catalog/product.jsp?productId=1545&amp;categoryId=41&amp;sectionId=1&amp;subCategoryId=0"]
["Solid Hardwood","Prefinished Exotic","BELLAWOOD","3/4\" x 3-1/4\" Brazilian Cherry, Clear Finish, Select",8.49,5.79,"/catalog/product.jsp?productId=1548&amp;categoryId=41&amp;sectionId=1&amp;subCategoryId=0"]
["Solid Hardwood","Prefinished Exotic","BELLAWOOD","3/4\" x 2-1/4\" Brazilian Mesquite, Clear Finish, Select",7.95,5.19,"/catalog/product.jsp?productId=1554&amp;categoryId=41&amp;sectionId=1&amp;subCategoryId=0"]
["Solid Hardwood","Prefinished Exotic","BELLAWOOD","3/4\" x 3-1/4\" Brazilian Mesquite, Clear Finish, Select",8.99,5.89,"/catalog/product.jsp?productId=1556&amp;categoryId=41&amp;sectionId=1&amp;subCategoryId=0"]
["Solid Hardwood","Prefinished Exotic","BELLAWOOD","3/4\" x 3-1/4\" Select Bolivian Rosewood, Clear Finish, Select",8.49,6.39,"/catalog/product.jsp?productId=1560&amp;categoryId=41&amp;sectionId=1&amp;subCategoryId=0"]
["Solid Hardwood","Prefinished Exotic","BELLAWOOD","3/4\" x 5\" Select Bolivian Rosewood, Clear Finish, Select",8.69,6.49,"/catalog/product.jsp?productId=1562&amp;categoryId=41&amp;sectionId=1&amp;subCategoryId=0"]
["Solid Hardwood","Prefinished Exotic","BELLAWOOD","3/4\" x 2 1/4\" Brazilian Walnut, Clear Finish, Select",8.69,5.79,"/catalog/product.jsp?productId=1565&amp;categoryId=41&amp;sectionId=1&amp;subCategoryId=0"]
["Solid Hardwood","Prefinished Exotic","BELLAWOOD","3/4\" x 3-1/4\" Brazilian Walnut, Clear Finish, Select",8.7899999999999991,6.69,"/catalog/product.jsp?productId=1567&amp;categoryId=41&amp;sectionId=1&amp;subCategoryId=0"]
["Solid Hardwood","Prefinished Exotic","BELLAWOOD","3/4\" x 5\" Brazilian Walnut, Clear Finish, Select",9.49,6.89,"/catalog/product.jsp?productId=1568&amp;categoryId=41&amp;sectionId=1&amp;subCategoryId=0"]
["Solid Hardwood","Prefinished Exotic","BELLAWOOD","3/4\" x 2-1/4\" Golden Teak, Clear Finish, Select",7.95,5.89,"/catalog/product.jsp?productId=1569&amp;categoryId=41&amp;sectionId=1&amp;subCategoryId=0"]
["Solid Hardwood","Prefinished Exotic","BELLAWOOD","3/4\" x 2-1/4\" Brazilian Koa, Clear Finish, Select",7.95,5.59,"/catalog/product.jsp?productId=1572&amp;categoryId=41&amp;sectionId=1&amp;subCategoryId=0"]
["Solid Hardwood","Prefinished Exotic","BELLAWOOD","3/4\" x 3-1/4\" Select Santos Mahogany, Clear Finish, Select",10.95,7.39,"/catalog/product.jsp?productId=1582&amp;categoryId=41&amp;sectionId=1&amp;subCategoryId=0"]
["Solid Hardwood","Prefinished Exotic","BELLAWOOD","3/4\" x 5\" Santos Mahogany, Clear Finish, Select",11.95,7.79,"/catalog/product.jsp?productId=1584&amp;categoryId=41&amp;sectionId=1&amp;subCategoryId=0"]
["Solid Hardwood","Prefinished Exotic","BELLAWOOD","3/4\" x 3-1/4\" Brazilian Teak, Clear Finish, Select",8.49,6.49,"/catalog/product.jsp?productId=2963&amp;categoryId=41&amp;sectionId=1&amp;subCategoryId=0"]
["Solid Hardwood","Prefinished Exotic","BELLAWOOD","3/4\" x 5\" Brazilian Teak, Clear Finish, Select",8.9499999999999993,6.59,"/catalog/product.jsp?productId=2965&amp;categoryId=41&amp;sectionId=1&amp;subCategoryId=0"]
["Solid Hardwood","Prefinished Exotic","BELLAWOOD","3/4\" x 3-1/4\" Brazilian Ebony, Clear Finish, Select",9.99,8.19,"/catalog/product.jsp?productId=3197&amp;categoryId=41&amp;sectionId=1&amp;subCategoryId=0"]
["Solid Hardwood","Prefinished Exotic","BELLAWOOD","3/4\" x 3-1/4\" Brazilian Redwood, Clear Finish, Select",8.39,6.09,"/catalog/product.jsp?productId=3200&amp;categoryId=41&amp;sectionId=1&amp;subCategoryId=0"]
["Solid Hardwood","Prefinished Exotic","BELLAWOOD","3/4\" x 5\" Brazilian Ebony Flooring, Clear Finish, Select",12.99,8.2899999999999991,"/catalog/product.jsp?productId=5848&amp;categoryId=41&amp;sectionId=1&amp;subCategoryId=0"]
["Solid Hardwood","Prefinished Exotic","BELLAWOOD","3/4\" x 3-1/4\" Select Brazilian Chestnut, Clear Finish, Select",8.8000000000000007,5.89,"/catalog/product.jsp?productId=6205&amp;categoryId=41&amp;sectionId=1&amp;subCategoryId=0"]
["Solid Hardwood","Prefinished Exotic","BELLAWOOD","3/4\" x 5\" Select Golden Teak, Clear Finish, Select",7.99,6.39,"/catalog/product.jsp?productId=6877&amp;categoryId=41&amp;sectionId=1&amp;subCategoryId=0"]
["Solid Hardwood","Prefinished Handscraped","Virginia Mill Works","3/4\" x 4-3/4\" Matterhorn Birch Handscraped, Stained Finish, Natural",7.45,4.1900000000000004,"/catalog/product.jsp?productId=3689&amp;categoryId=234&amp;sectionId=1&amp;subCategoryId=0"]
["Solid Hardwood","Prefinished Handscraped","Virginia Mill Works","3/4\" x 4-3/4\" Coventry Oak-Light Handscraped, Stained Finish, Natural",7.45,4.6900000000000004,"/catalog/product.jsp?productId=3869&amp;categoryId=234&amp;sectionId=1&amp;subCategoryId=0"]
["Solid Hardwood","Prefinished Handscraped","Virginia Mill Works","3/4\" x 4-3/4\" Golden Teak Handscraped, Stained Finish, Select",8.99,5.79,"/catalog/product.jsp?productId=3871&amp;categoryId=234&amp;sectionId=1&amp;subCategoryId=0"]
["Solid Hardwood","Prefinished Handscraped","Virginia Mill Works","3/4\" x 4-3/4\" Old World Oak Handscraped, Stained Finish, Natural",7.45,4.6900000000000004,"/catalog/product.jsp?productId=3875&amp;categoryId=234&amp;sectionId=1&amp;subCategoryId=0"]
["Solid Hardwood","Prefinished Handscraped","Virginia Mill Works","3/4\" x 4-3/4\" Tobacco Road Handscraped, Clear Finish, Select",8.99,5.79,"/catalog/product.jsp?productId=3877&amp;categoryId=234&amp;sectionId=1&amp;subCategoryId=0"]
["Solid Hardwood","Prefinished Handscraped","Virginia Mill Works","3/4\" x 4-3/4\" Windsor Oak-Dark Handscraped, Stained Finish, Natural",7.45,4.6900000000000004,"/catalog/product.jsp?productId=3879&amp;categoryId=234&amp;sectionId=1&amp;subCategoryId=0"]
["Solid Hardwood","Prefinished Handscraped","Virginia Mill Works","3/4\" x 4-3/4\" Cambridge Oak Handscraped, Stained Finish, Natural",7.45,4.6900000000000004,"/catalog/product.jsp?productId=5162&amp;categoryId=234&amp;sectionId=1&amp;subCategoryId=0"]
["Solid Hardwood","Prefinished Handscraped","Virginia Mill Works","3/4\" x 4-3/4\" Knob Hill Birch Handscraped, Stained Finish, Natural",7.45,3.79,"/catalog/product.jsp?productId=5164&amp;categoryId=234&amp;sectionId=1&amp;subCategoryId=0"]
["Solid Hardwood","Prefinished Handscraped","Virginia Mill Works","3/4\" x 5\" Western Ranch Heart Pine, Stained Finish, Natural",7.99,4.79,"/catalog/product.jsp?productId=6896&amp;categoryId=234&amp;sectionId=1&amp;subCategoryId=0"]
["Solid Hardwood","Prefinished Stained","Casa de Colour","3/4\" x 2-1/4\" Spice Oak, Stained Finish, Millrun",4.49,3.29,"/catalog/product.jsp?productId=7902&amp;categoryId=6&amp;sectionId=1&amp;subCategoryId=0"]
["Solid Hardwood","Prefinished Stained","Casa de Colour","3/4\" x 3-5/8\" Tobacco Road Acacia, Clear Finish, Select",5.99,4.79,"/catalog/product.jsp?productId=7307&amp;categoryId=6&amp;sectionId=1&amp;subCategoryId=0"]
["Solid Hardwood","Prefinished Stained","Casa de Colour","3/4\" x 2-1/4\" Lucia Maple, Clear Finish, -",6.09,2.99,"/catalog/product.jsp?productId=7876&amp;categoryId=6&amp;sectionId=1&amp;subCategoryId=0"]
["Solid Hardwood","Prefinished Stained","Casa de Colour","3/4\" x 3-1/4\" Lucia Maple, Clear Finish, -",6.09,3.99,"/catalog/product.jsp?productId=7878&amp;categoryId=6&amp;sectionId=1&amp;subCategoryId=0"]
["Solid Hardwood","Prefinished Stained","Casa de Colour","3/4\" x 5\" Lucia Maple, Clear Finish, -",6.09,4.79,"/catalog/product.jsp?productId=7880&amp;categoryId=6&amp;sectionId=1&amp;subCategoryId=0"]
["Solid Hardwood","Prefinished Stained","Casa de Colour","3/4\" x 2-1/4\" Lono Oak, Stained Finish, Millrun",5.19,2.99,"/catalog/product.jsp?productId=7882&amp;categoryId=6&amp;sectionId=1&amp;subCategoryId=0"]
["Solid Hardwood","Prefinished Stained","Casa de Colour","3/4\" x 2-1/4\" Pinot Oak, Stained Finish, Millrun",4.49,3.49,"/catalog/product.jsp?productId=7900&amp;categoryId=6&amp;sectionId=1&amp;subCategoryId=0"]
["Solid Hardwood","Prefinished Stained","Casa de Colour","3/4\" x 3-1/4\" Spice Oak, Stained Finish, Millrun",4.99,3.99,"/catalog/product.jsp?productId=7904&amp;categoryId=6&amp;sectionId=1&amp;subCategoryId=0"]
["Solid Hardwood","Prefinished Stained","Casa de Colour","3/4\" x 5\" Spice Oak, Stained Finish, Millrun",5.99,4.6900000000000004,"/catalog/product.jsp?productId=7906&amp;categoryId=6&amp;sectionId=1&amp;subCategoryId=0"]
["Solid Hardwood","Prefinished Stained","Casa de Colour","3/4\" x 2-1/4\" Gunstock Oak, Stained Finish, Millrun",5.19,2.99,"/catalog/product.jsp?productId=7908&amp;categoryId=6&amp;sectionId=1&amp;subCategoryId=0"]
["Solid Hardwood","Prefinished Stained","Casa de Colour","3/4\" x 3-1/4\" Gunstock Oak, Stained Finish, Millrun",4.49,3.99,"/catalog/product.jsp?productId=7910&amp;categoryId=6&amp;sectionId=1&amp;subCategoryId=0"]
["Solid Hardwood","Prefinished Stained","Casa de Colour","3/4\" x 5\" Gunstock Oak, Clear Finish, Millrun",5.99,4.6900000000000004,"/catalog/product.jsp?productId=7911&amp;categoryId=6&amp;sectionId=1&amp;subCategoryId=0"]
["Solid Hardwood","Prefinished Stained","Casa de Colour","3/4\" x 2-1/4\" Koka Oak, Stained Finish, Millrun",4.49,3.49,"/catalog/product.jsp?productId=7913&amp;categoryId=6&amp;sectionId=1&amp;subCategoryId=0"]
["Solid Hardwood","Prefinished Stained","Casa de Colour","3/4\" x 3-1/4\" Koka Oak, Stained Finish, Millrun",5.29,3.99,"/catalog/product.jsp?productId=7915&amp;categoryId=6&amp;sectionId=1&amp;subCategoryId=0"]
["Solid Hardwood","Prefinished Stained","Casa de Colour","3/4\" x 5\" Koka Oak, Stained Finish, Millrun",5.99,4.6900000000000004,"/catalog/product.jsp?productId=7917&amp;categoryId=6&amp;sectionId=1&amp;subCategoryId=0"]
["Solid Hardwood","Prefinished Stained","Casa de Colour","3/4\" x 2-1/4\" Butter Rum Oak, Stained Finish, Natural",5.19,3.49,"/catalog/product.jsp?productId=7919&amp;categoryId=6&amp;sectionId=1&amp;subCategoryId=0"]
["Solid Hardwood","Prefinished Stained","Casa de Colour","3/4\" x 3-1/4\" Butter Rum Oak, Stained Finish, Natural",5.19,3.99,"/catalog/product.jsp?productId=7921&amp;categoryId=6&amp;sectionId=1&amp;subCategoryId=0"]
["Solid Hardwood","Prefinished Stained","Casa de Colour","3/4\" x 5\" Butter Rum Oak, Stained Finish, Natural",5.99,4.59,"/catalog/product.jsp?productId=7923&amp;categoryId=6&amp;sectionId=1&amp;subCategoryId=0"]
["Solid Hardwood","Prefinished Stained","Casa de Colour","3/4\" x 2-1/4\" Remington Oak, Clear Finish, Natural",4.49,3.29,"/catalog/product.jsp?productId=7925&amp;categoryId=6&amp;sectionId=1&amp;subCategoryId=0"]
["Solid Hardwood","Prefinished Stained","Casa de Colour","3/4\" x 3-1/4\" Remington Oak, Clear Finish, Natural",4.79,3.99,"/catalog/product.jsp?productId=7927&amp;categoryId=6&amp;sectionId=1&amp;subCategoryId=0"]
["Solid Hardwood","Prefinished Stained","Casa de Colour","3/4\" x 5\" Remington Oak, Stained Finish, Millrun",5.99,4.6900000000000004,"/catalog/product.jsp?productId=7929&amp;categoryId=6&amp;sectionId=1&amp;subCategoryId=0"]
["Solid Hardwood","Prefinished Stained","Casa de Colour","3/4\" x 2-1/4\" Spiced Hickory, Stained Finish, Millrun",4.49,3.79,"/catalog/product.jsp?productId=7931&amp;categoryId=6&amp;sectionId=1&amp;subCategoryId=0"]
["Solid Hardwood","Prefinished Stained","Casa de Colour","3/4\" x 3-1/4\" Spiced Hickory, Stained Finish, Millrun",5.29,4.1900000000000004,"/catalog/product.jsp?productId=7933&amp;categoryId=6&amp;sectionId=1&amp;subCategoryId=0"]
["Solid Hardwood","Prefinished Stained","Casa de Colour","3/4\" x 5\" Spiced Hickory, Stained Finish, Millrun",5.99,4.79,"/catalog/product.jsp?productId=7935&amp;categoryId=6&amp;sectionId=1&amp;subCategoryId=0"]
["Solid Hardwood","Prefinished Stained","Casa de Colour","3/4\" x 2-1/4\" Walnut Hickory, Stained Finish, Millrun",4.49,3.79,"/catalog/product.jsp?productId=7937&amp;categoryId=6&amp;sectionId=1&amp;subCategoryId=0"]
["Solid Hardwood","Prefinished Stained","Casa de Colour","3/4\" x 3-1/4\" Walnut Hickory, Stained Finish, Millrun",5.29,4.1900000000000004,"/catalog/product.jsp?productId=7939&amp;categoryId=6&amp;sectionId=1&amp;subCategoryId=0"]
["Solid Hardwood","Prefinished Stained","Casa de Colour","3/4\" x 5\" Walnut Hickory, Stained Finish, Millrun",5.99,4.79,"/catalog/product.jsp?productId=7941&amp;categoryId=6&amp;sectionId=1&amp;subCategoryId=0"]
["Solid Hardwood","Prefinished Stained","Casa de Colour","3/4\" x 3-1/4 Pinot Oak, Stained Finish, Millrun",4.99,3.99,"/catalog/product.jsp?productId=7943&amp;categoryId=6&amp;sectionId=1&amp;subCategoryId=0"]
["Solid Hardwood","Prefinished Stained","Casa de Colour","3/4\" x 5\" Pinot Oak, Stained Finish, Millrun",5.99,4.6900000000000004,"/catalog/product.jsp?productId=7945&amp;categoryId=6&amp;sectionId=1&amp;subCategoryId=0"]
["Solid Hardwood","Unfinished","Clover Lea","3/4\" x 5\" Natural Heart Pine, Rustic",3.29,2.69,"/catalog/product.jsp?productId=2014&amp;categoryId=7&amp;sectionId=1&amp;subCategoryId=0"]
["Solid Hardwood","Unfinished","R.L. Colston","3/4\" x 2 1/4\" Maple Flooring, Millrun",5.29,3.29,"/catalog/product.jsp?productId=2017&amp;categoryId=7&amp;sectionId=1&amp;subCategoryId=0"]
["Solid Hardwood","Unfinished","R.L. Colston","3/4\" x 3 1/4\" Maple, Unfinished, Select",6,3.69,"/catalog/product.jsp?productId=2018&amp;categoryId=7&amp;sectionId=1&amp;subCategoryId=0"]
["Solid Hardwood","Unfinished","R.L. Colston","3/4\" x 2 1/4\" Red Oak, Natural",2.79,2.34,"/catalog/product.jsp?productId=2021&amp;categoryId=7&amp;sectionId=1&amp;subCategoryId=0"]
["Solid Hardwood","Unfinished","R.L. Colston","3/4\" x 2 1/4\" Red Oak, Unfinished, Rustic",2.29,2.19,"/catalog/product.jsp?productId=2022&amp;categoryId=7&amp;sectionId=1&amp;subCategoryId=0"]
["Solid Hardwood","Unfinished","R.L. Colston","3/4\" x 2 1/4\" Red Oak, Unfinished, Select",3.19,2.4900000000000002,"/catalog/product.jsp?productId=2023&amp;categoryId=7&amp;sectionId=1&amp;subCategoryId=0"]
["Solid Hardwood","Unfinished","R.L. Colston","3/4\" x 3 1/4\" Red Oak, Unfinished, Natural",2.89,2.59,"/catalog/product.jsp?productId=2024&amp;categoryId=7&amp;sectionId=1&amp;subCategoryId=0"]
["Solid Hardwood","Unfinished","R.L. Colston","3/4\" x 3 1/4\" Red Oak, Rustic",2.39,2.19,"/catalog/product.jsp?productId=2025&amp;categoryId=7&amp;sectionId=1&amp;subCategoryId=0"]
["Solid Hardwood","Unfinished","R.L. Colston","3/4\" x 3 1/4\" Red Oak, Unfinished, Select",3.29,2.69,"/catalog/product.jsp?productId=2026&amp;categoryId=7&amp;sectionId=1&amp;subCategoryId=0"]
["Solid Hardwood","Unfinished","R.L. Colston","3/4\" x 4\" Red Oak, Unfinished, Natural",3.09,2.69,"/catalog/product.jsp?productId=2027&amp;categoryId=7&amp;sectionId=1&amp;subCategoryId=0"]
["Solid Hardwood","Unfinished","R.L. Colston","3/4\" x 4 1/4\" Red Oak, Select",3.79,2.79,"/catalog/product.jsp?productId=2029&amp;categoryId=7&amp;sectionId=1&amp;subCategoryId=0"]
["Solid Hardwood","Unfinished","Clover Lea","3/4\" x 3-1/8\" Southern Yellow Pine, Unfinished, Rustic",2.25,1.49,"/catalog/product.jsp?productId=2031&amp;categoryId=7&amp;sectionId=1&amp;subCategoryId=0"]
["Solid Hardwood","Unfinished","Clover Lea","3/4\" x 5\" Southern Yellow Pine, Unfinished, Rustic",2.2999999999999998,1.61,"/catalog/product.jsp?productId=2032&amp;categoryId=7&amp;sectionId=1&amp;subCategoryId=0"]
["Solid Hardwood","Unfinished","Clover Lea","3/4\" x 7-1/8\" Southern Yellow Pine, Unfinished, Rustic",2.59,1.7,"/catalog/product.jsp?productId=2033&amp;categoryId=7&amp;sectionId=1&amp;subCategoryId=0"]
["Solid Hardwood","Unfinished","R.L. Colston","3/4\" x 2-1/4\" White Oak, Unfinished, Natural",2.79,2.39,"/catalog/product.jsp?productId=2034&amp;categoryId=7&amp;sectionId=1&amp;subCategoryId=0"]
["Solid Hardwood","Unfinished","R.L. Colston","3/4\" x 2-1/4\" White Oak, Unfinished, Rustic",3.19,2.59,"/catalog/product.jsp?productId=2036&amp;categoryId=7&amp;sectionId=1&amp;subCategoryId=0"]
["Solid Hardwood","Unfinished","R.L. Colston","3/4\" x 3-1/4\" White Oak, Unfinished, Natural",2.89,2.59,"/catalog/product.jsp?productId=2037&amp;categoryId=7&amp;sectionId=1&amp;subCategoryId=0"]
["Solid Hardwood","Unfinished","R.L. Colston","3/4\" x 3-1/4\" White Oak, Unfinished, Rustic",2.39,2.39,"/catalog/product.jsp?productId=2038&amp;categoryId=7&amp;sectionId=1&amp;subCategoryId=0"]
["Solid Hardwood","Unfinished","R.L. Colston","3/4\" X 3-1/4\" White Oak, Unfinished, Select",3.29,2.89,"/catalog/product.jsp?productId=2039&amp;categoryId=7&amp;sectionId=1&amp;subCategoryId=0"]
["Solid Hardwood","Unfinished","Clover Lea","3/4\" x 8-7/8\" x 8' New England White Pine, Rustic",3.59,1.59,"/catalog/product.jsp?productId=2041&amp;categoryId=7&amp;sectionId=1&amp;subCategoryId=0"]
["Solid Hardwood","Unfinished","Clover Lea","3/4\" x 5-1/8\" x 6' New England White Pine, Unfinished, Rustic",3.09,1.0900000000000001,"/catalog/product.jsp?productId=2042&amp;categoryId=7&amp;sectionId=1&amp;subCategoryId=0"]
["Solid Hardwood","Unfinished","Clover Lea","3/4\" x 6-7/8\" x 6' New England White Pine, Rustic",3.15,1.1299999999999999,"/catalog/product.jsp?productId=2043&amp;categoryId=7&amp;sectionId=1&amp;subCategoryId=0"]
["Solid Hardwood","Unfinished","R.L. Colston","3/4\" x 2 1/4\" Brazilian Cherry, Unfinished, Select",4.29,3.49,"/catalog/product.jsp?productId=2046&amp;categoryId=7&amp;sectionId=1&amp;subCategoryId=0"]
["Solid Hardwood","Unfinished","R.L. Colston","3/4\" x 3 1/4\" Brazilian Cherry, Select",4.6900000000000004,4.09,"/catalog/product.jsp?productId=2047&amp;categoryId=7&amp;sectionId=1&amp;subCategoryId=0"]
["Solid Hardwood","Unfinished","R.L. Colston","3/4\" x 5\" Brazilian Cherry, Unfinished, Select",4.99,4.1900000000000004,"/catalog/product.jsp?productId=2048&amp;categoryId=7&amp;sectionId=1&amp;subCategoryId=0"]
["Solid Hardwood","Unfinished","R.L. Colston","3/4\" x 3\" Brazilian Walnut, Unfinished, Select",5.39,4.6900000000000004,"/catalog/product.jsp?productId=2051&amp;categoryId=7&amp;sectionId=1&amp;subCategoryId=0"]
["Solid Hardwood","Unfinished","R.L. Colston","3/4\" x 5\" Brazilian Walnut, Unfinished, Select",5.69,5.29,"/catalog/product.jsp?productId=2052&amp;categoryId=7&amp;sectionId=1&amp;subCategoryId=0"]
["Solid Hardwood","Unfinished","R.L. Colston","3/4\" x 3 1/4\" Rift/Quartersawn Red Oak Flooring Select",4.25,3.19,"/catalog/product.jsp?productId=5226&amp;categoryId=7&amp;sectionId=1&amp;subCategoryId=0"]
["Solid Hardwood","Unfinished","R.L. Colston","3/4\" x 4\" Hickory, Unfinished, Natural",3.89,3.39,"/catalog/product.jsp?productId=5247&amp;categoryId=7&amp;sectionId=1&amp;subCategoryId=0"]
["Solid Hardwood","Unfinished","R.L. Colston","3/4\" x 4-1/4\" White Oak, Unfinished, Select",3.69,2.79,"/catalog/product.jsp?productId=5293&amp;categoryId=7&amp;sectionId=1&amp;subCategoryId=0"]
["Solid Hardwood","Unfinished","Clover Lea","3/4\" x 9\" Southern Yellow Pine, Unfinished, Rustic",2.59,1.89,"/catalog/product.jsp?productId=7022&amp;categoryId=7&amp;sectionId=1&amp;subCategoryId=0"]
["Solid Hardwood","Unfinished","Clover Lea","3/4\" x 5-1/8\" New England White Pine, Unfinished, Rustic",2.15,1.0900000000000001,"/catalog/product.jsp?productId=7023&amp;categoryId=7&amp;sectionId=1&amp;subCategoryId=0"]
["Engineered Hardwood","Bellawood Engineered","BELLAWOOD Engineered","1/2\" x 5\" Brazilian Cherry Engineered, Clear Finish, Select",12.99,6.09,"/catalog/product.jsp?productId=6914&amp;categoryId=657&amp;sectionId=614&amp;subCategoryId=0"]
["Engineered Hardwood","Bellawood Engineered","BELLAWOOD Engineered","1/2\" x 5\" Maple Engineered, Clear Finish, Natural",10.99,5.29,"/catalog/product.jsp?productId=6918&amp;categoryId=657&amp;sectionId=614&amp;subCategoryId=0"]
["Engineered Hardwood","Bellawood Engineered","BELLAWOOD Engineered","1/2\" x 5\" Red Oak Engineered, Clear Finish, Natural",10.49,5.19,"/catalog/product.jsp?productId=6920&amp;categoryId=657&amp;sectionId=614&amp;subCategoryId=0"]
["Engineered Hardwood","Prefinished Domestic","Schön Engineered","5/16\" x 4\" Toasted Cinnamon Birch Engineered, Stained Finish, Select",3.99,1.99,"/catalog/product.jsp?productId=6277&amp;categoryId=491&amp;sectionId=614&amp;subCategoryId=0"]
["Engineered Hardwood","Prefinished Domestic","Schön Engineered","5/16\" x 4\" Creme Brulee, Stained Finish, Natural",4.79,2.09,"/catalog/product.jsp?productId=7537&amp;categoryId=491&amp;sectionId=614&amp;subCategoryId=0"]
["Engineered Hardwood","Prefinished Domestic","Mayflower","5/16\" x 4\" Mudslide Birch, Stained Finish, Natural",4.29,1.69,"/catalog/product.jsp?productId=7693&amp;categoryId=491&amp;sectionId=614&amp;subCategoryId=0"]
["Engineered Hardwood","Prefinished Domestic","Schön Engineered","3/8\" x 3\" Gunstock Oak Engineered, Stained Finish, Natural",5.99,2.89,"/catalog/product.jsp?productId=1657&amp;categoryId=491&amp;sectionId=614&amp;subCategoryId=0"]
["Engineered Hardwood","Prefinished Domestic","Schön Engineered","3/8\" x 3\" Red Oak Engineered, Clear Finish, Select",5.89,2.89,"/catalog/product.jsp?productId=1665&amp;categoryId=491&amp;sectionId=614&amp;subCategoryId=0"]
["Engineered Hardwood","Prefinished Domestic","Schön Engineered","3/8\" x 3\" Butterscotch Engineered, Clear Finish, Natural",4.79,2.89,"/catalog/product.jsp?productId=6264&amp;categoryId=491&amp;sectionId=614&amp;subCategoryId=0"]
["Engineered Hardwood","Prefinished Domestic","Schön Quick Clic Engineered","3/8\" x 4-1/4\" Copper Maple, Stained Finish, Select",7.99,3.79,"/catalog/product.jsp?productId=6839&amp;categoryId=491&amp;sectionId=614&amp;subCategoryId=0"]
["Engineered Hardwood","Prefinished Domestic","Schön Quick Clic Engineered","3/8\" x 4-1/4\" Golden Birch, Stained Finish, Select",7.99,3.79,"/catalog/product.jsp?productId=6840&amp;categoryId=491&amp;sectionId=614&amp;subCategoryId=0"]
["Engineered Hardwood","Prefinished Domestic","Schön Engineered","3/8\" x 3\" Canadian Maple Engineered, Clear Finish, Select",6.79,3.79,"/catalog/product.jsp?productId=6994&amp;categoryId=491&amp;sectionId=614&amp;subCategoryId=0"]
["Engineered Hardwood","Prefinished Domestic","Schön Engineered","3/8\" x 5\" Packsaddle Mountain Oak, Stained Finish, Natural",5.89,2.4900000000000002,"/catalog/product.jsp?productId=7274&amp;categoryId=491&amp;sectionId=614&amp;subCategoryId=0"]
["Engineered Hardwood","Prefinished Domestic","Virginia Mill Works","3/8\" x 5\" Quic Clic Burnished Maple, Stained Finish, Natural",8.99,4.3899999999999997,"/catalog/product.jsp?productId=7870&amp;categoryId=491&amp;sectionId=614&amp;subCategoryId=0"]
["Engineered Hardwood","Prefinished Domestic","Schön Quick Clic Engineered","7/16\" x 4-3/4\" Canadian Maple, Clear Finish, Select",5.99,3.59,"/catalog/product.jsp?productId=7702&amp;categoryId=491&amp;sectionId=614&amp;subCategoryId=0"]
["Engineered Hardwood","Prefinished Domestic","Schön Quick Clic Engineered","7/16\" x 4-3/4\" Natural Hickory, Clear Finish, Natural",5.79,3.39,"/catalog/product.jsp?productId=7706&amp;categoryId=491&amp;sectionId=614&amp;subCategoryId=0"]
["Engineered Hardwood","Prefinished Domestic","Schön Quick Clic Engineered","7/16\" x 4-3/4\" Red Oak, Clear Finish, Select",5.79,3.39,"/catalog/product.jsp?productId=7708&amp;categoryId=491&amp;sectionId=614&amp;subCategoryId=0"]
["Engineered Hardwood","Prefinished Domestic","Virginia Mill Works","7/16\" x 4-3/4\" Quick Clic Richmond Plank, Stained Finish, Natural",6.49,3.89,"/catalog/product.jsp?productId=7874&amp;categoryId=491&amp;sectionId=614&amp;subCategoryId=0"]
["Engineered Hardwood","Prefinished Domestic","Virginia Mill Works","1/2\" x 5\" Colonial Plank Handscraped, Stained Finish, Natural",7.29,4.29,"/catalog/product.jsp?productId=3504&amp;categoryId=491&amp;sectionId=614&amp;subCategoryId=0"]
["Engineered Hardwood","Prefinished Domestic","Virginia Mill Works","1/2\" x 5\" Potomac Plank Handscraped, Stained Finish, Natural",7.29,3.79,"/catalog/product.jsp?productId=3506&amp;categoryId=491&amp;sectionId=614&amp;subCategoryId=0"]
["Engineered Hardwood","Prefinished Domestic","Virginia Mill Works","1/2\" x 5\" Richmond Plank Handscraped, Stained Finish, Natural",7.29,3.79,"/catalog/product.jsp?productId=3508&amp;categoryId=491&amp;sectionId=614&amp;subCategoryId=0"]
["Engineered Hardwood","Prefinished Domestic","Virginia Mill Works","1/2\" x 5\" Tobacco Road Handscraped, Clear Finish, Natural",8.49,4.29,"/catalog/product.jsp?productId=5595&amp;categoryId=491&amp;sectionId=614&amp;subCategoryId=0"]
["Engineered Hardwood","Prefinished Domestic","Virginia Mill Works","1/2\" x 5\" Obsidian Plank, Stained Finish, Natural",5.99,4.29,"/catalog/product.jsp?productId=7040&amp;categoryId=491&amp;sectionId=614&amp;subCategoryId=0"]
["Engineered Hardwood","Prefinished Domestic","Schön Engineered","9/16\" x 7\" South Plains Plank, Stained Finish, Natural",8.99,2.89,"/catalog/product.jsp?productId=7276&amp;categoryId=491&amp;sectionId=614&amp;subCategoryId=0"]
["Engineered Hardwood","Prefinished Domestic","Schön Engineered","9/16\" x 7\" Longhorn Plank Engineered, Stained Finish, Natural",8.99,2.89,"/catalog/product.jsp?productId=7528&amp;categoryId=491&amp;sectionId=614&amp;subCategoryId=0"]
["Engineered Hardwood","Prefinished Exotic","Schön Engineered","5/16\" x 4\" Brazilian Cherry Engineered, Clear Finish, Natural",5.79,2.59,"/catalog/product.jsp?productId=6271&amp;categoryId=492&amp;sectionId=614&amp;subCategoryId=0"]
["Engineered Hardwood","Prefinished Exotic","Schön Engineered","5/16\" x 4\" Brazilian Walnut Engineered, Clear Finish, Natural",5.99,2.69,"/catalog/product.jsp?productId=6274&amp;categoryId=492&amp;sectionId=614&amp;subCategoryId=0"]
["Engineered Hardwood","Prefinished Exotic","Schön Engineered","5/16\" x 4\" Chocolate Sapele Engineered, Stained Finish, Natural",4.99,2.59,"/catalog/product.jsp?productId=6280&amp;categoryId=492&amp;sectionId=614&amp;subCategoryId=0"]
["Engineered Hardwood","Prefinished Exotic","Schön Engineered","5/16\" x 4\" Warm Cognac Curupay Engineered, Stained Finish, Select",5.79,2.4900000000000002,"/catalog/product.jsp?productId=7539&amp;categoryId=492&amp;sectionId=614&amp;subCategoryId=0"]
["Engineered Hardwood","Prefinished Exotic","Schön Engineered","3/8\" x 3-1/4\" Australian Cypress Engineered, Clear Finish, Natural",6.99,4.1900000000000004,"/catalog/product.jsp?productId=4589&amp;categoryId=492&amp;sectionId=614&amp;subCategoryId=0"]
["Engineered Hardwood","Prefinished Exotic","Schön Engineered","3/8\" x 3\" Brazilian Cherry, Clear Finish, Natural",5.49,3.49,"/catalog/product.jsp?productId=7997&amp;categoryId=492&amp;sectionId=614&amp;subCategoryId=0"]
["Engineered Hardwood","Prefinished Exotic","Schön ","3/8\" x 3\" Brazilian Koa, Clear Finish, Natural",5.69,3.79,"/catalog/product.jsp?productId=7999&amp;categoryId=492&amp;sectionId=614&amp;subCategoryId=0"]
["Engineered Hardwood","Prefinished Exotic","Schön Quick Clic Engineered","7/16\" x 4-3/4\" Brazilian Cherry, Clear Finish, Select",6.49,3.89,"/catalog/product.jsp?productId=7698&amp;categoryId=492&amp;sectionId=614&amp;subCategoryId=0"]
["Engineered Hardwood","Prefinished Exotic","Schön Quick Clic Engineered","7/16\" x 4-3/4\" Brazilian Koa, Clear Finish, Natural",6.49,3.89,"/catalog/product.jsp?productId=7700&amp;categoryId=492&amp;sectionId=614&amp;subCategoryId=0"]
["Engineered Hardwood","Prefinished Exotic","Schön Quick Clic Engineered","7/16\" x 4-3/4\" Santos Mahogany, Clear Finish, Natural",7.99,4.59,"/catalog/product.jsp?productId=7710&amp;categoryId=492&amp;sectionId=614&amp;subCategoryId=0"]
["Engineered Hardwood","Prefinished Exotic","Schön ","1/2\" x 5\" Brazilian Cherry Engineered, Clear Finish, Select",7.79,3.99,"/catalog/product.jsp?productId=1652&amp;categoryId=492&amp;sectionId=614&amp;subCategoryId=0"]
["Engineered Hardwood","Prefinished Exotic","Virginia Mill Works","1/2\" x 5\" Golden Teak Plank Handscraped, Stained Finish, Natural",8.49,4.29,"/catalog/product.jsp?productId=5594&amp;categoryId=492&amp;sectionId=614&amp;subCategoryId=0"]
["Engineered Hardwood","Prefinished Exotic","Schön ","1/2\" x 5\" Brazilian Koa Engineered, Clear Finish, Select",8.2899999999999991,4.29,"/catalog/product.jsp?productId=6589&amp;categoryId=492&amp;sectionId=614&amp;subCategoryId=0"]
["Engineered Hardwood","Prefinished Handscraped","Mayflower","3/8\" x 5\" Sundance Handscraped Plank, Stained Finish, -",5.29,2.79,"/catalog/product.jsp?productId=14543&amp;categoryId=689&amp;sectionId=614&amp;subCategoryId=0"]
["Engineered Hardwood","Prefinished Handscraped","Mayflower","3/8\" x 5\" Ridgefield Handscraped Plank, Stained Finish, -",5.29,2.79,"/catalog/product.jsp?productId=15157&amp;categoryId=689&amp;sectionId=614&amp;subCategoryId=0"]
["Engineered Hardwood","Prefinished Handscraped","Virginia Mill Works","3/8\" x 5\" Quic Clic Burnished Maple, Stained Finish, Natural",8.99,4.3899999999999997,"/catalog/product.jsp?productId=7870&amp;categoryId=689&amp;sectionId=614&amp;subCategoryId=0"]
["Engineered Hardwood","Prefinished Handscraped","Virginia Mill Works","7/16\" x 4-3/4\" Quick Clic Richmond Plank, Stained Finish, Natural",6.49,3.89,"/catalog/product.jsp?productId=7874&amp;categoryId=689&amp;sectionId=614&amp;subCategoryId=0"]
["Engineered Hardwood","Prefinished Handscraped","Virginia Mill Works","1/2\" x 5\" Colonial Plank Handscraped, Stained Finish, Natural",7.29,4.29,"/catalog/product.jsp?productId=3504&amp;categoryId=689&amp;sectionId=614&amp;subCategoryId=0"]
["Engineered Hardwood","Prefinished Handscraped","Virginia Mill Works","1/2\" x 5\" Potomac Plank Handscraped, Stained Finish, Natural",7.29,3.79,"/catalog/product.jsp?productId=3506&amp;categoryId=689&amp;sectionId=614&amp;subCategoryId=0"]
["Engineered Hardwood","Prefinished Handscraped","Virginia Mill Works","1/2\" x 5\" Richmond Plank Handscraped, Stained Finish, Natural",7.29,3.79,"/catalog/product.jsp?productId=3508&amp;categoryId=689&amp;sectionId=614&amp;subCategoryId=0"]
["Engineered Hardwood","Prefinished Handscraped","Virginia Mill Works","1/2\" x 5\" Golden Teak Plank Handscraped, Stained Finish, Natural",8.49,4.29,"/catalog/product.jsp?productId=5594&amp;categoryId=689&amp;sectionId=614&amp;subCategoryId=0"]
["Engineered Hardwood","Prefinished Handscraped","Virginia Mill Works","1/2\" x 5\" Tobacco Road Handscraped, Clear Finish, Natural",8.49,4.29,"/catalog/product.jsp?productId=5595&amp;categoryId=689&amp;sectionId=614&amp;subCategoryId=0"]
["Engineered Hardwood","Prefinished Handscraped","Virginia Mill Works","1/2\" x 5\" Obsidian Plank, Stained Finish, Natural",5.99,4.29,"/catalog/product.jsp?productId=7040&amp;categoryId=689&amp;sectionId=614&amp;subCategoryId=0"]
["Engineered Hardwood","Prefinished Handscraped","Virginia Mill Works","1/2\" x 5\" Santa Cruz Handscraped Plank, Prefinished Handscraped, Natural",6.99,3.89,"/catalog/product.jsp?productId=7955&amp;categoryId=689&amp;sectionId=614&amp;subCategoryId=0"]
["Engineered Hardwood","Prefinished Handscraped","Virginia Mill Works","1/2\" x 5\" Somerton Handscraped Plank, Prefinished Handscraped, Natural",6.99,3.89,"/catalog/product.jsp?productId=7959&amp;categoryId=689&amp;sectionId=614&amp;subCategoryId=0"]
["Engineered Hardwood","Prefinished Stained","Schön Engineered","5/16\" x 4\" Toasted Cinnamon Birch Engineered, Stained Finish, Select",3.99,1.99,"/catalog/product.jsp?productId=6277&amp;categoryId=690&amp;sectionId=614&amp;subCategoryId=0"]
["Engineered Hardwood","Prefinished Stained","Schön Engineered","5/16\" x 4\" Chocolate Sapele Engineered, Stained Finish, Natural",4.99,2.59,"/catalog/product.jsp?productId=6280&amp;categoryId=690&amp;sectionId=614&amp;subCategoryId=0"]
["Engineered Hardwood","Prefinished Stained","Schön Engineered","5/16\" x 4\" Creme Brulee, Stained Finish, Natural",4.79,2.09,"/catalog/product.jsp?productId=7537&amp;categoryId=690&amp;sectionId=614&amp;subCategoryId=0"]
["Engineered Hardwood","Prefinished Stained","Schön Engineered","5/16\" x 4\" Warm Cognac Curupay Engineered, Stained Finish, Select",5.79,2.4900000000000002,"/catalog/product.jsp?productId=7539&amp;categoryId=690&amp;sectionId=614&amp;subCategoryId=0"]
["Engineered Hardwood","Prefinished Stained","Mayflower","5/16\" x 4\" Mudslide Birch, Stained Finish, Natural",4.29,1.69,"/catalog/product.jsp?productId=7693&amp;categoryId=690&amp;sectionId=614&amp;subCategoryId=0"]
["Engineered Hardwood","Prefinished Stained","Schön Engineered","3/8\" x 3\" Gunstock Oak Engineered, Stained Finish, Natural",5.99,2.89,"/catalog/product.jsp?productId=1657&amp;categoryId=690&amp;sectionId=614&amp;subCategoryId=0"]
["Engineered Hardwood","Prefinished Stained","Schön Engineered","3/8\" x 3\" Butterscotch Engineered, Clear Finish, Natural",4.79,2.89,"/catalog/product.jsp?productId=6264&amp;categoryId=690&amp;sectionId=614&amp;subCategoryId=0"]
["Engineered Hardwood","Prefinished Stained","Schön Quick Clic Engineered","3/8\" x 4-1/4\" Copper Maple, Stained Finish, Select",7.99,3.79,"/catalog/product.jsp?productId=6839&amp;categoryId=690&amp;sectionId=614&amp;subCategoryId=0"]
["Engineered Hardwood","Prefinished Stained","Schön Quick Clic Engineered","3/8\" x 4-1/4\" Golden Birch, Stained Finish, Select",7.99,3.79,"/catalog/product.jsp?productId=6840&amp;categoryId=690&amp;sectionId=614&amp;subCategoryId=0"]
["Engineered Hardwood","Prefinished Stained","Schön Engineered","3/8\" x 5\" Packsaddle Mountain Oak, Stained Finish, Natural",5.89,2.4900000000000002,"/catalog/product.jsp?productId=7274&amp;categoryId=690&amp;sectionId=614&amp;subCategoryId=0"]
["Engineered Hardwood","Prefinished Stained","Virginia Mill Works","3/8\" x 5\" Quic Clic Burnished Maple, Stained Finish, Natural",8.99,4.3899999999999997,"/catalog/product.jsp?productId=7870&amp;categoryId=690&amp;sectionId=614&amp;subCategoryId=0"]
["Engineered Hardwood","Prefinished Stained","Schön Quick Clic Engineered","7/16\" x 4-3/4\" Canadian Maple, Clear Finish, Select",5.99,3.59,"/catalog/product.jsp?productId=7702&amp;categoryId=690&amp;sectionId=614&amp;subCategoryId=0"]
["Engineered Hardwood","Prefinished Stained","Schön Quick Clic Engineered","7/16\" x 4-3/4\" Acacia, Clear Finish, Select",6.99,4.3899999999999997,"/catalog/product.jsp?productId=7704&amp;categoryId=690&amp;sectionId=614&amp;subCategoryId=0"]
["Engineered Hardwood","Prefinished Stained","Virginia Mill Works","7/16\" x 4-3/4\" Quick Clic Richmond Plank, Stained Finish, Natural",6.49,3.89,"/catalog/product.jsp?productId=7874&amp;categoryId=690&amp;sectionId=614&amp;subCategoryId=0"]
["Engineered Hardwood","Prefinished Stained","Virginia Mill Works","1/2\" x 5\" Colonial Plank Handscraped, Stained Finish, Natural",7.29,4.29,"/catalog/product.jsp?productId=3504&amp;categoryId=690&amp;sectionId=614&amp;subCategoryId=0"]
["Engineered Hardwood","Prefinished Stained","Virginia Mill Works","1/2\" x 5\" Richmond Plank Handscraped, Stained Finish, Natural",7.29,3.79,"/catalog/product.jsp?productId=3508&amp;categoryId=690&amp;sectionId=614&amp;subCategoryId=0"]
["Engineered Hardwood","Prefinished Stained","Virginia Mill Works","1/2\" x 5\" Tobacco Road Handscraped, Clear Finish, Natural",8.49,4.29,"/catalog/product.jsp?productId=5595&amp;categoryId=690&amp;sectionId=614&amp;subCategoryId=0"]
["Engineered Hardwood","Prefinished Stained","Virginia Mill Works","1/2\" x 5\" Obsidian Plank, Stained Finish, Natural",5.99,4.29,"/catalog/product.jsp?productId=7040&amp;categoryId=690&amp;sectionId=614&amp;subCategoryId=0"]
["Engineered Hardwood","Prefinished Stained","Schön Engineered","1/2\" x 5\" African Safari Aniegre Engineered, Clear Finish, Natural",7.99,3.59,"/catalog/product.jsp?productId=7494&amp;categoryId=690&amp;sectionId=614&amp;subCategoryId=0"]
["Engineered Hardwood","Prefinished Stained","Schön Engineered","9/16\" x 7\" South Plains Plank, Stained Finish, Natural",8.99,2.89,"/catalog/product.jsp?productId=7276&amp;categoryId=690&amp;sectionId=614&amp;subCategoryId=0"]
["Engineered Hardwood","Prefinished Stained","Schön Engineered","9/16\" x 7\" Longhorn Plank Engineered, Stained Finish, Natural",8.99,2.89,"/catalog/product.jsp?productId=7528&amp;categoryId=690&amp;sectionId=614&amp;subCategoryId=0"]
["Bamboo and Cork","Bamboo","Morning Star","9/16\" x 5-1/4\" Sufong Palace Strand Bamboo, Stained, -",12.69,4.8899999999999997,"/catalog/product.jsp?productId=15045&amp;categoryId=495&amp;sectionId=472&amp;subCategoryId=0"]
["Bamboo and Cork","Bamboo","Morning Star","9/16\" x 5-1/4\" Shing Palace Strand Bamboo, Prefinished, -",12.49,4.8899999999999997,"/catalog/product.jsp?productId=15472&amp;categoryId=495&amp;sectionId=472&amp;subCategoryId=0"]
["Bamboo and Cork","Bamboo","Morning Star","5/8\" x 3-3/4\" Strand Qing Xiamen Bamboo, Stained Finish, Natural",6.89,3.89,"/catalog/product.jsp?productId=16069&amp;categoryId=495&amp;sectionId=472&amp;subCategoryId=0"]
["Bamboo and Cork","Bamboo","Morning Star","5/8\" x 3-3/4\" Qing Scorpion Strand Bamboo, Stained Finish, -",6.89,3.89,"/catalog/product.jsp?productId=7961&amp;categoryId=495&amp;sectionId=472&amp;subCategoryId=0"]
["Bamboo and Cork","Bamboo","Morning Star","3/8\" x 3-3/4\" Clic Strand Carbonized Bamboo, Clear Finish, Carbonized",6.99,3.59,"/catalog/product.jsp?productId=7969&amp;categoryId=495&amp;sectionId=472&amp;subCategoryId=0"]
["Bamboo and Cork","Bamboo","Morning Star","9/16\" x 3-3/4\" Qing Dragon Strand Bamboo, Clear Finish, Natural",6.89,3.89,"/catalog/product.jsp?productId=6265&amp;categoryId=495&amp;sectionId=472&amp;subCategoryId=0"]
["Bamboo and Cork","Bamboo","Schön Quick Clic Engineered","9/16\" x 5\" Horizontal Carbonized Bamboo Quick Clic, Clear Finish, Natural",6.29,3.49,"/catalog/product.jsp?productId=6544&amp;categoryId=495&amp;sectionId=472&amp;subCategoryId=0"]
["Bamboo and Cork","Bamboo","Schön Quick Clic Engineered","9/16\" x 5\" Horizontal Natural Bamboo Quick Clic, Clear Finish, Natural",6.29,3.49,"/catalog/product.jsp?productId=6546&amp;categoryId=495&amp;sectionId=472&amp;subCategoryId=0"]
["Bamboo and Cork","Bamboo","Schön Quick Clic Engineered","9/16\" x 5\" Natural Strand Bamboo Quick Clic, Clear Finish, Natural",7.49,3.99,"/catalog/product.jsp?productId=6548&amp;categoryId=495&amp;sectionId=472&amp;subCategoryId=0"]
["Bamboo and Cork","Bamboo","Schön Quick Clic Engineered","9/16\" x 5\" Vertical Carbonized Bamboo Quick Clic, Clear Finish, Natural",6.49,3.69,"/catalog/product.jsp?productId=6550&amp;categoryId=495&amp;sectionId=472&amp;subCategoryId=0"]
["Bamboo and Cork","Bamboo","Schön Quick Clic Engineered","9/16\" x 5\" Vertical Natural Bamboo Quick Clic, Clear Finish, Natural",6.49,3.69,"/catalog/product.jsp?productId=6552&amp;categoryId=495&amp;sectionId=472&amp;subCategoryId=0"]
["Bamboo and Cork","Bamboo","Schön Quick Clic Engineered","9/16\" x 5\" Carbonized Strand Bamboo Quick Clic, Clear Finish, Natural",7.49,3.99,"/catalog/product.jsp?productId=6576&amp;categoryId=495&amp;sectionId=472&amp;subCategoryId=0"]
["Bamboo and Cork","Bamboo","Morning Star","9/16\" x 3-3/4\" Qing Kobra Strand Bamboo, Stained Finish, -",6.89,3.89,"/catalog/product.jsp?productId=6763&amp;categoryId=495&amp;sectionId=472&amp;subCategoryId=0"]
["Bamboo and Cork","Bamboo","Morning Star","5/8\" x 3-3/4\" Qing Viper Strand Bamboo, Stained Finish, -",6.89,3.89,"/catalog/product.jsp?productId=7963&amp;categoryId=495&amp;sectionId=472&amp;subCategoryId=0"]
["Bamboo and Cork","Bamboo","Morning Star","9/16\" x 4-3/4\" Clic Strand Carbonized Bamboo, Clear Finish, Carbonized",7.99,4.3899999999999997,"/catalog/product.jsp?productId=7967&amp;categoryId=495&amp;sectionId=472&amp;subCategoryId=0"]
["Bamboo and Cork","Bamboo","Morning Star","9/16\" x 4-3/4\" Clic Strand Kobra Bamboo, Stained Finish, -",7.99,4.3899999999999997,"/catalog/product.jsp?productId=7971&amp;categoryId=495&amp;sectionId=472&amp;subCategoryId=0"]
["Bamboo and Cork","Bamboo","Morning Star","9/16\" x 4-3/4\" Clic Strand Natural Bamboo, Stained Finish, -",7.99,4.3899999999999997,"/catalog/product.jsp?productId=7973&amp;categoryId=495&amp;sectionId=472&amp;subCategoryId=0"]
["Bamboo and Cork","Bamboo","Morning Star","5/8\" x 3-3/4\" Horiz. Carbonized Bamboo, Clear Finish, Carbonized",4.8899999999999997,2.59,"/catalog/product.jsp?productId=1916&amp;categoryId=495&amp;sectionId=472&amp;subCategoryId=0"]
["Bamboo and Cork","Bamboo","Morning Star","5/8\" x 3-3/4\" Horizontal Natural Bamboo, Clear Finish, Natural",4.8899999999999997,2.59,"/catalog/product.jsp?productId=1917&amp;categoryId=495&amp;sectionId=472&amp;subCategoryId=0"]
["Bamboo and Cork","Bamboo","Morning Star","5/8\" x 3-3/4\" Vertical Carbonized Bamboo, Clear Finish, Carbonized",4.8899999999999997,2.79,"/catalog/product.jsp?productId=1918&amp;categoryId=495&amp;sectionId=472&amp;subCategoryId=0"]
["Bamboo and Cork","Bamboo","Supreme Bamboo","5/8\" x 3-3/4\" Horizontal Carbonized Bamboo, Clear Finish, Carbonized",3.89,2.19,"/catalog/product.jsp?productId=1920&amp;categoryId=495&amp;sectionId=472&amp;subCategoryId=0"]
["Bamboo and Cork","Bamboo","Supreme Bamboo","5/8\" x 3-3/4\" Horizontal Natural Bamboo, Clear Finish, Natural",3.89,1.89,"/catalog/product.jsp?productId=1921&amp;categoryId=495&amp;sectionId=472&amp;subCategoryId=0"]
["Bamboo and Cork","Bamboo","Supreme Bamboo","5/8\" x 3-3/4\" Vertical Carbonized Bamboo, Clear Finish, Carbonized",3.99,2.29,"/catalog/product.jsp?productId=1922&amp;categoryId=495&amp;sectionId=472&amp;subCategoryId=0"]
["Bamboo and Cork","Bamboo","Ty Pennington Bamboo","5/8\" x 3-3/4\" Bordeaux Bamboo, Stained Finish, Natural",4.8899999999999997,3.19,"/catalog/product.jsp?productId=3234&amp;categoryId=495&amp;sectionId=472&amp;subCategoryId=0"]
["Bamboo and Cork","Bamboo","Ty Pennington Bamboo","5/8\" x 3-3/4\" Miso Bamboo, Stained Finish, Natural",4.8899999999999997,3.19,"/catalog/product.jsp?productId=3235&amp;categoryId=495&amp;sectionId=472&amp;subCategoryId=0"]
["Bamboo and Cork","Bamboo","Ty Pennington Bamboo","5/8\" x 3-3/4\" Sambuca Bamboo, Stained Finish, Natural",4.8899999999999997,3.19,"/catalog/product.jsp?productId=3236&amp;categoryId=495&amp;sectionId=472&amp;subCategoryId=0"]
["Bamboo and Cork","Bamboo","Morning Star","5/8\" x 3-3/4\" Arcadia Bamboo, Stained Finish, Select",4.8899999999999997,2.79,"/catalog/product.jsp?productId=4217&amp;categoryId=495&amp;sectionId=472&amp;subCategoryId=0"]
["Bamboo and Cork","Bamboo","Morning Star","5/8\" x 3-3/4\" Potala Palace Bamboo Handscraped, Stained Finish, Select",5.99,3.49,"/catalog/product.jsp?productId=4223&amp;categoryId=495&amp;sectionId=472&amp;subCategoryId=0"]
["Bamboo and Cork","Bamboo","Morning Star","5/8\" x 3-3/4\" Strand Carbonized Bamboo, Clear Finish, Select",6.89,3.89,"/catalog/product.jsp?productId=4229&amp;categoryId=495&amp;sectionId=472&amp;subCategoryId=0"]
["Bamboo and Cork","Bamboo","Morning Star","5/8\" x 3-3/4\" Strand Natural Bamboo, Clear Finish, Select",6.89,3.79,"/catalog/product.jsp?productId=4230&amp;categoryId=495&amp;sectionId=472&amp;subCategoryId=0"]
["Bamboo and Cork","Bamboo","Morning Star","5/8\" x 3-3/4\" Tiger Strand Bamboo, Clear Finish, Select",6.89,3.49,"/catalog/product.jsp?productId=5155&amp;categoryId=495&amp;sectionId=472&amp;subCategoryId=0"]
["Bamboo and Cork","Bamboo","Morning Star","5/8\" x 3-3/4\" Tai Shan Mist Bamboo, Stained Finish, Natural",4.8899999999999997,3.09,"/catalog/product.jsp?productId=6238&amp;categoryId=495&amp;sectionId=472&amp;subCategoryId=0"]
["Bamboo and Cork","Bamboo","Morning Star","5/8\" x 3-3/4 Qing Spyder Strand Bamboo, Stained Finish, -",6.89,3.79,"/catalog/product.jsp?productId=7318&amp;categoryId=495&amp;sectionId=472&amp;subCategoryId=0"]
["Bamboo and Cork","Bamboo","Morning Star","5/8\" x 3-3/4\" Golden Zebra Strand Bamboo, Stained Finish, -",6.89,3.89,"/catalog/product.jsp?productId=7965&amp;categoryId=495&amp;sectionId=472&amp;subCategoryId=0"]
["Bamboo and Cork","Cork","Lisbon Cork","Amadora Cork, Clear Finish, -",6.79,2.99,"/catalog/product.jsp?productId=7836&amp;categoryId=496&amp;sectionId=472&amp;subCategoryId=0"]
["Bamboo and Cork","Cork","Lisbon Cork","Sunset Cork Tile, Clear Finish, Cork",3.59,1.29,"/catalog/product.jsp?productId=1588&amp;categoryId=496&amp;sectionId=472&amp;subCategoryId=0"]
["Bamboo and Cork","Cork","Lisbon Cork","Cassatt Cork, Clear Finish, Cork",5.99,3.79,"/catalog/product.jsp?productId=5187&amp;categoryId=496&amp;sectionId=472&amp;subCategoryId=0"]
["Bamboo and Cork","Cork","Lisbon Cork","Dali Cork, Clear Finish, Cork",5.49,3.69,"/catalog/product.jsp?productId=5188&amp;categoryId=496&amp;sectionId=472&amp;subCategoryId=0"]
["Bamboo and Cork","Cork","Lisbon Cork","Matisse Cork, Clear Finish, Cork",5.99,3.79,"/catalog/product.jsp?productId=5191&amp;categoryId=496&amp;sectionId=472&amp;subCategoryId=0"]
["Bamboo and Cork","Cork","Lisbon Cork","Van Gogh Cork, Clear Finish, Cork",5.49,3.69,"/catalog/product.jsp?productId=6136&amp;categoryId=496&amp;sectionId=472&amp;subCategoryId=0"]
["Bamboo and Cork","Cork","Lisbon Cork","Evora Cork, Clear Finish, -",6.99,3.79,"/catalog/product.jsp?productId=7838&amp;categoryId=496&amp;sectionId=472&amp;subCategoryId=0"]
["Bamboo and Cork","Cork","Lisbon Cork","Porto Cork, Clear Finish, -",5.99,3.49,"/catalog/product.jsp?productId=7840&amp;categoryId=496&amp;sectionId=472&amp;subCategoryId=0"]
["Laminate and Vinyl","Laminate","Dream Home - Charisma","7MM Bolivian Mahogany Laminate, -",2.99,1.0900000000000001,"/catalog/product.jsp?productId=3325&amp;categoryId=500&amp;sectionId=473&amp;subCategoryId=0"]
["Laminate and Vinyl","Laminate","Dream Home - Charisma","8mm Point Loma Mahogany, -",1.99,0.99,"/catalog/product.jsp?productId=6975&amp;categoryId=500&amp;sectionId=473&amp;subCategoryId=0"]
["Laminate and Vinyl","Laminate","Dream Home - St. James","12mm Nantucket Beech Laminate, -",4.29,2.4900000000000002,"/catalog/product.jsp?productId=7058&amp;categoryId=500&amp;sectionId=473&amp;subCategoryId=0"]
["Laminate and Vinyl","Laminate","Dream Home - St. James","12mm Vintner's Reserve Laminate, -",4.29,2.4900000000000002,"/catalog/product.jsp?productId=7060&amp;categoryId=500&amp;sectionId=473&amp;subCategoryId=0"]
["Laminate and Vinyl","Laminate","Dream Home - St. James","12mm Szechuan Ming Bamboo Laminate, -",4.29,1.99,"/catalog/product.jsp?productId=7312&amp;categoryId=500&amp;sectionId=473&amp;subCategoryId=0"]
["Laminate and Vinyl","Laminate","Dream Home - St. James","12mm Horizontal Natural Bamboo Laminate, -",4.29,2.4900000000000002,"/catalog/product.jsp?productId=7986&amp;categoryId=500&amp;sectionId=473&amp;subCategoryId=0"]
["Laminate and Vinyl","Laminate","Dream Home - St. James","12mm Hawkeye Point Petrified Chestnut Laminate, -",4.29,2.39,"/catalog/product.jsp?productId=7988&amp;categoryId=500&amp;sectionId=473&amp;subCategoryId=0"]
["Laminate and Vinyl","Laminate","Dream Home - St. James","12mm Toasted Chicory Laminate, -",4.29,2.4900000000000002,"/catalog/product.jsp?productId=7992&amp;categoryId=500&amp;sectionId=473&amp;subCategoryId=0"]
["Laminate and Vinyl","Laminate","Dream Home - Charisma","7mm Sunny Day Laminate, -",2.79,1.0900000000000001,"/catalog/product.jsp?productId=8253&amp;categoryId=500&amp;sectionId=473&amp;subCategoryId=0"]
["Laminate and Vinyl","Laminate","Dream Home - Nirvana","10mm Bear Mountain Oak Laminate, -",3.99,1.89,"/catalog/product.jsp?productId=18741&amp;categoryId=500&amp;sectionId=473&amp;subCategoryId=0"]
["Laminate and Vinyl","Laminate","Dream Home - Utopia","6mm American Classic Oak, -",2.4900000000000002,0.89,"/catalog/product.jsp?productId=7994&amp;categoryId=500&amp;sectionId=473&amp;subCategoryId=0"]
["Laminate and Vinyl","Laminate","Dream Home - Utopia","6mm American Cherry Laminate, -",2.4900000000000002,0.89,"/catalog/product.jsp?productId=6734&amp;categoryId=500&amp;sectionId=473&amp;subCategoryId=0"]
["Laminate and Vinyl","Laminate","Dream Home - Utopia","6mm Sugar Maple, -",2.4900000000000002,0.69,"/catalog/product.jsp?productId=7864&amp;categoryId=500&amp;sectionId=473&amp;subCategoryId=0"]
["Laminate and Vinyl","Laminate","Dream Home - Charisma","7mm Plymouth Plank Laminate, -",2.99,1.0900000000000001,"/catalog/product.jsp?productId=6189&amp;categoryId=500&amp;sectionId=473&amp;subCategoryId=0"]
["Laminate and Vinyl","Laminate","Dream Home - Charisma","7mm Medway Park Merbau Laminate, -",2.79,1.0900000000000001,"/catalog/product.jsp?productId=6949&amp;categoryId=500&amp;sectionId=473&amp;subCategoryId=0"]
["Laminate and Vinyl","Laminate","Dream Home - Charisma","7mm Mt. Vernon Cherry Laminate, -",2.99,0.85,"/catalog/product.jsp?productId=3365&amp;categoryId=500&amp;sectionId=473&amp;subCategoryId=0"]
["Laminate and Vinyl","Laminate","Dream Home - Charisma","7mm Santos Mahogany Light Laminate, -",2.79,1.0900000000000001,"/catalog/product.jsp?productId=6951&amp;categoryId=500&amp;sectionId=473&amp;subCategoryId=0"]
["Laminate and Vinyl","Laminate","Dream Home - Nirvana V3","8mm Havana Mahogany Laminate, -",3.39,2.19,"/catalog/product.jsp?productId=1825&amp;categoryId=500&amp;sectionId=473&amp;subCategoryId=0"]
["Laminate and Vinyl","Laminate","Dream Home - Nirvana V3","8mm Vienna Red Oak Laminate, -",3.89,2.19,"/catalog/product.jsp?productId=1826&amp;categoryId=500&amp;sectionId=473&amp;subCategoryId=0"]
["Laminate and Vinyl","Laminate","Dream Home - Nirvana","8mm French Oak Laminate, -",3.39,1.59,"/catalog/product.jsp?productId=3166&amp;categoryId=500&amp;sectionId=473&amp;subCategoryId=0"]
["Laminate and Vinyl","Laminate","Dream Home - Nirvana","8mm Mountain Pine Laminate, -",3.39,1.39,"/catalog/product.jsp?productId=3373&amp;categoryId=500&amp;sectionId=473&amp;subCategoryId=0"]
["Laminate and Vinyl","Laminate","Dream Home - Nirvana","8mm Mill Town Antique Cherry Laminate, -",3.39,1.59,"/catalog/product.jsp?productId=3380&amp;categoryId=500&amp;sectionId=473&amp;subCategoryId=0"]
["Laminate and Vinyl","Laminate","Dream Home - Nirvana","8mm Royal Mahogany Laminate, -",3.39,1.59,"/catalog/product.jsp?productId=3387&amp;categoryId=500&amp;sectionId=473&amp;subCategoryId=0"]
["Laminate and Vinyl","Laminate","Dream Home - Nirvana","8mm Brazilian Cherry Laminate, -",3.39,1.59,"/catalog/product.jsp?productId=6190&amp;categoryId=500&amp;sectionId=473&amp;subCategoryId=0"]
["Laminate and Vinyl","Laminate","Dream Home - Nirvana V3","8mm Canary Island Pine Laminate, -",3.89,2.19,"/catalog/product.jsp?productId=6200&amp;categoryId=500&amp;sectionId=473&amp;subCategoryId=0"]
["Laminate and Vinyl","Laminate","Dream Home - Nirvana V3","8mm Mississippi Whitewash Pine Laminate, -",3.89,2.19,"/catalog/product.jsp?productId=6202&amp;categoryId=500&amp;sectionId=473&amp;subCategoryId=0"]
["Laminate and Vinyl","Laminate","Dream Home - Charisma","8mm Monte Cristi Mahogany Laminate, -",3.29,2.59,"/catalog/product.jsp?productId=6664&amp;categoryId=500&amp;sectionId=473&amp;subCategoryId=0"]
["Laminate and Vinyl","Laminate","Dream Home - Charisma","8mm Colma Road Maple, -",1.99,0.99,"/catalog/product.jsp?productId=6972&amp;categoryId=500&amp;sectionId=473&amp;subCategoryId=0"]
["Laminate and Vinyl","Laminate","Dream Home - Charisma","8mm Prairie City Cherry Laminate, -",1.99,0.99,"/catalog/product.jsp?productId=6974&amp;categoryId=500&amp;sectionId=473&amp;subCategoryId=0"]
["Laminate and Vinyl","Laminate","Dream Home - Charisma","8mm Buchanan Oak Laminate",3.39,1.79,"/catalog/product.jsp?productId=15243&amp;categoryId=500&amp;sectionId=473&amp;subCategoryId=0"]
["Laminate and Vinyl","Laminate","Dream Home - Nirvana","8mm Auburn Walnut Laminate, -",3.39,1.79,"/catalog/product.jsp?productId=17358&amp;categoryId=500&amp;sectionId=473&amp;subCategoryId=0"]
["Laminate and Vinyl","Laminate","Dream Home - Nirvana","8mm Chilton Woods Oak Laminate, -",3.39,1.59,"/catalog/product.jsp?productId=17833&amp;categoryId=500&amp;sectionId=473&amp;subCategoryId=0"]
["Laminate and Vinyl","Laminate","Dream Home - Nirvana","10mm Springer Mountain Oak Laminate, -",3.99,1.89,"/catalog/product.jsp?productId=8146&amp;categoryId=500&amp;sectionId=473&amp;subCategoryId=0"]
["Laminate and Vinyl","Laminate","Dream Home - Nirvana","10mm Ashford Select Red Oak Laminate, -",3.99,1.89,"/catalog/product.jsp?productId=18748&amp;categoryId=500&amp;sectionId=473&amp;subCategoryId=0"]
["Laminate and Vinyl","Laminate","Dream Home - Nirvana","10mm Dunes Bay Driftwood Laminate, -",3.39,1.89,"/catalog/product.jsp?productId=8145&amp;categoryId=500&amp;sectionId=473&amp;subCategoryId=0"]
["Laminate and Vinyl","Laminate","Dream Home - Nirvana","10mm Boa Vista Brazilian Cherry Laminate, -",3.99,1.89,"/catalog/product.jsp?productId=8250&amp;categoryId=500&amp;sectionId=473&amp;subCategoryId=0"]
["Laminate and Vinyl","Laminate","Dream Home - St. James","12mm Embassy Mahogany High Gloss Laminate, -",4.29,2.39,"/catalog/product.jsp?productId=3164&amp;categoryId=500&amp;sectionId=473&amp;subCategoryId=0"]
["Laminate and Vinyl","Laminate","Dream Home - Kensington Manor","12MM Summer Retreat Teak Handscraped Laminate, -",4.6900000000000004,2.69,"/catalog/product.jsp?productId=3297&amp;categoryId=500&amp;sectionId=473&amp;subCategoryId=0"]
["Laminate and Vinyl","Laminate","Dream Home - St. James","12mm Westminster Rosewood High Gloss Laminate, -",4.29,2.39,"/catalog/product.jsp?productId=3313&amp;categoryId=500&amp;sectionId=473&amp;subCategoryId=0"]
["Laminate and Vinyl","Laminate","Dream Home - St. James","12mm African Mahogany Laminate, -",4.29,2.4900000000000002,"/catalog/product.jsp?productId=6185&amp;categoryId=500&amp;sectionId=473&amp;subCategoryId=0"]
["Laminate and Vinyl","Laminate","Dream Home - St. James","12mm Stratton Mountain Maple Laminate, -",3.39,1.69,"/catalog/product.jsp?productId=6186&amp;categoryId=500&amp;sectionId=473&amp;subCategoryId=0"]
["Laminate and Vinyl","Laminate","Dream Home - St. James","12mm Burnet Road Russet Laminate, -",4.29,2.69,"/catalog/product.jsp?productId=6578&amp;categoryId=500&amp;sectionId=473&amp;subCategoryId=0"]
["Laminate and Vinyl","Laminate","Dream Home - St. James","12mm Congress Avenue Crimson Laminate, -",4.29,2.69,"/catalog/product.jsp?productId=6580&amp;categoryId=500&amp;sectionId=473&amp;subCategoryId=0"]
["Laminate and Vinyl","Laminate","Dream Home - Kensington Manor","12mm Golden Teak Handscraped Laminate, -",4.6900000000000004,2.79,"/catalog/product.jsp?productId=6582&amp;categoryId=500&amp;sectionId=473&amp;subCategoryId=0"]
["Laminate and Vinyl","Laminate","Dream Home - Kensington Manor","12mm Imperial Teak Handscraped Laminate, -",4.29,2.69,"/catalog/product.jsp?productId=6879&amp;categoryId=500&amp;sectionId=473&amp;subCategoryId=0"]
["Laminate and Vinyl","Laminate","Dream Home - Kensington Manor","12mm Tanzanian Wenge Laminate, -",4.6900000000000004,2.69,"/catalog/product.jsp?productId=6881&amp;categoryId=500&amp;sectionId=473&amp;subCategoryId=0"]
["Laminate and Vinyl","Laminate","Dream Home - St. James","12mm Blacksburg Barn Board Laminate, -",4.29,2.4900000000000002,"/catalog/product.jsp?productId=6962&amp;categoryId=500&amp;sectionId=473&amp;subCategoryId=0"]
["Laminate and Vinyl","Laminate","Dream Home - Kensington Manor","12mm Glacier Peak Poplar Laminate, -",4.6900000000000004,2.69,"/catalog/product.jsp?productId=7057&amp;categoryId=500&amp;sectionId=473&amp;subCategoryId=0"]
["Laminate and Vinyl","Laminate","Dream Home - St. James","12mm Brazilian Koa Laminate, -",4.29,2.4900000000000002,"/catalog/product.jsp?productId=7683&amp;categoryId=500&amp;sectionId=473&amp;subCategoryId=0"]
["Laminate and Vinyl","Laminate","Dream Home - Ispiri","12mm African Thuya Burlwood Laminate, -",5.99,2.89,"/catalog/product.jsp?productId=7982&amp;categoryId=500&amp;sectionId=473&amp;subCategoryId=0"]
["Laminate and Vinyl","Laminate","Dream Home - Ispiri","12mm Heritage Long Length Oak Laminate, -",5.99,2.89,"/catalog/product.jsp?productId=7984&amp;categoryId=500&amp;sectionId=473&amp;subCategoryId=0"]
["Laminate and Vinyl","Laminate","Dream Home - Ispiri","12mm Sloane Street Teak Laminate, -",5.99,2.89,"/catalog/product.jsp?productId=7990&amp;categoryId=500&amp;sectionId=473&amp;subCategoryId=0"]
["Laminate and Vinyl","Laminate","Dream Home - St. James","12mm Chimney Rock Charcoal Laminate, -",4.29,2.4900000000000002,"/catalog/product.jsp?productId=7995&amp;categoryId=500&amp;sectionId=473&amp;subCategoryId=0"]
["Laminate and Vinyl","Laminate","Dream Home - Ispiri","12mm Buffalo Gap Hickory Laminate, -",5.99,2.89,"/catalog/product.jsp?productId=13812&amp;categoryId=500&amp;sectionId=473&amp;subCategoryId=0"]
["Laminate and Vinyl","Resilient Vinyl","Tranquility","1.5mm South Perry Pine Resilient, -",1.99,0.79,"/catalog/product.jsp?productId=6964&amp;categoryId=499&amp;sectionId=473&amp;subCategoryId=0"]
["Laminate and Vinyl","Resilient Vinyl","Tranquility","2mm African Mahogany Resilient, -",2.39,0.99,"/catalog/product.jsp?productId=7788&amp;categoryId=499&amp;sectionId=473&amp;subCategoryId=0"]
["Laminate and Vinyl","Resilient Vinyl","Tranquility","2mm Horizontal Bamboo Resilient, #3",2.39,1.19,"/catalog/product.jsp?productId=7948&amp;categoryId=499&amp;sectionId=473&amp;subCategoryId=0"]
["Laminate and Vinyl","Resilient Vinyl","Tranquility","2mm Elgin Oak Resilient, -",2.39,1.19,"/catalog/product.jsp?productId=6967&amp;categoryId=499&amp;sectionId=473&amp;subCategoryId=0"]
["Laminate and Vinyl","Resilient Vinyl","Tranquility","2mm Horn Lake White Wash Resilient, -",2.39,1.19,"/catalog/product.jsp?productId=6968&amp;categoryId=499&amp;sectionId=473&amp;subCategoryId=0"]
["Laminate and Vinyl","Resilient Vinyl","Tranquility","2mm Mt. Mitchell Cherry Resilient, -",2.39,1.19,"/catalog/product.jsp?productId=6969&amp;categoryId=499&amp;sectionId=473&amp;subCategoryId=0"]
["Laminate and Vinyl","Resilient Vinyl","Tranquility","2mm New River Mahogany Resilient, -",2.39,1.19,"/catalog/product.jsp?productId=6970&amp;categoryId=499&amp;sectionId=473&amp;subCategoryId=0"]

{"sheet":"QuoteUnFin","index":4,"n_rows":34,"n_cols":12,"rows_kept":34,"cut":false,"hidden":false,"merged":[[33,1,33,2],[23,8,23,9],[24,8,24,9],[25,8,25,9],[26,8,26,9],[29,8,29,9],[30,8,30,9],[27,8,27,9],[28,8,28,9]]}
["Item Code","Description","Order-qty","Unit","Price","Amount","Tax","Cost / sqft","Notes"]
[null,null,null,null,null,null,null,null,null,null,1000]
["ffoncz5-satin","Polo Plaz 5Gal Supreme Finish Satin",1,"ea",129,129,"OTT",{"$f":"129/2000","v":6.4500000000000002E-2},"1 Gal = 400 sqft",{"$f":"K2/2000","v":0.5},{"$f":"H3*$K$2","v":64.5}]
["SS750018112","BonaKemi DriFast 1Gal Stain Antique Brown",1,"ea",30.04,30.04,"OTT",{"$f":"F4/500","v":6.0080000000000001E-2},"1 Gal = 500 sqft",{"$f":"K2/500","v":2},{"$f":"H4*$K$2","v":60.08}]
["plastic61","Clear Film 6 mil 10 x 100",1,"ea",33.5,33.5,"OTT",{"$f":"F5/1000","v":3.3500000000000002E-2},"1000 sqft",{"$f":"K2/1000","v":1},{"$f":"H5*$K$2","v":33.5}]
["felt14","15# Roofing Felt - G.A.P. Label",1,"ea",14.5,14.5,"OTT",{"$f":"F6/400","v":3.6249999999999998E-2},"400 sqft",null,{"$f":"H6*$K$2","v":36.25}]
["7512PG-10.3M","Staple - 1 1/2\" Spotnails",1,"ea",48.88,48.88,"OTT",{"$f":"F7/1000","v":4.888E-2},"1 box = 1000 sqft",null,48.88]
["mynaae125","1 1/4 Pins - Aerosmith",1,"ea",65,65,"OTT",{"$f":"F8/1000","v":6.5000000000000002E-2},"1 box = 1000 sqft",null,65]
["plywood5/8","5/8\" Plywood - 19/32 PRS 40/20 Ext 1 SYP",1,"ea",2.23,2.23,"OTT",{"$f":"F9/32","v":6.9687499999999999E-2},"1 Sheet = 32 sqft",null,69.6875]
[16005,"7 7/8 x 29 1/2 Norton Belt 36 Grit Silicon Carbide",1,"ea",15.25,15.25,"OTT",{"$f":"E10","v":15.25},"1 per job",null,{"$f":"H10","v":15.25}]
[16001,"7 7/8 x 29 1/2 Norton Belt 80 Grit Silicon Carbide",1,"ea",6.37,6.37,"OTT",{"$f":"E11","v":6.37},"1 per job",null,{"$f":"H11","v":6.37}]
[20518,"16in Norton Screen 80 Grit",1,"ea",5.25,5.25,"OTT",{"$f":"E12","v":5.25},"1 per job",null,{"$f":"H12","v":5.25}]
[35007,"7 x 7/8 Norton Edger Disc Silicon Carbide 80 Grit",1,"ea",0.5,0.5,"OTT",{"$f":"F13/100","v":5.0000000000000001E-3},"10 per 1000 sqft",null,5]
[35076,"7 x 7/8 Norton Edger Disc Silicon Carbide 100 Grit",1,"ea",0.45,0.45,"OTT",{"$f":"F14/100","v":4.5000000000000005E-3},"10 per 1000 sqft",null,4.5000000000000009]
[]
["2251CROMH","2 1/4\" Red Oak #1 Common Missouri Hardwoods Nested",1,"sqft",1.95,1.95,"OTT",{"$f":"E16","v":1.95}]
["2252CROCB","2 1/4 \" Red Oak #2 Common",1,"sqft",1.75,1.75,"OTT",{"$f":"E17","v":1.75}]
["3252CROMM","3 1/4\" Red Oak #2 Common",1,"sqft",1.7,1.7,"OTT",1.7]
["3251CROWD","3 1/4\" Red Oak #1 Common",1,"sqft",2.4,2.4,"OTT",2.4,null,null,2400]
["4002CROMM","4\" Red Oak #2 Common",1,"sqft",2.25,2.25,"OTT",2.25]
["5002CROMT","5\" Red Oak #2 Common",1,"sqft",2.23,2.23,"OTT",2.23]
["1501CROMI","1 1/2\" Red Oak #1 Common Nested",1,"sqft",1.8,1.8,"OTT",1.8]
["1501+WOHC","1 1/2\" White Oak #1 and Better Nested",1,"sqft",1.8,1.8,"OTT",1.8]
[null,null,null,null,null,null,null,null,"SubTotal",null,{"$f":"SUM(K3:K23)","v":2814.2674999999999}]
[null,null,null,null,null,null,null,null,"Tax (8.25%)",null,{"$f":"K24*0.0875","v":246.24840624999999}]
[null,null,null,null,null,null,null,null,"Total With Tax",null,{"$f":"SUM(K24:K25)","v":3060.5159062499997}]
[null,null,null,null,null,null,null,null,"Total per SqFt (w/ tax)",null,{"$f":"K26/K2","v":3.0605159062499996}]
[null,null,null,null,null,null,null,null,"Wood Markup",null,{"$f":"((K19/K2)+L28)*K2","v":3400},1]
[null,null,null,null,null,null,null,null,"Labor Markup",null,{"$f":"L29*K2","v":5000},5]
[null,"Make a Budgeting thing",null,null,null,null,null,null,"Total Quoted",null,{"$f":"SUM(K29+K28)+SUM(K3:K14)","v":8814.2674999999999}]
[null,"Negotiate Labor",null,null,null,null,null,null,"Total Quoted per SqFt",null,{"$f":"K30/K2","v":8.8142674999999997}]
[null,"average btw low and high"]
[null,"8.5-9.5 / sqft  unfinished & pre"]
[null,"pre finished Margin per SqFt (1 wood / 3  labor)"]

{"sheet":"QuoteFin","index":5,"n_rows":20,"n_cols":13,"rows_kept":20,"cut":false,"hidden":false,"merged":[[15,8,15,9],[16,8,16,9],[19,1,19,2],[9,8,9,9],[10,8,10,9],[11,8,11,9],[12,8,12,9],[13,8,13,9],[14,8,14,9]]}
["Item Code","Description","Order-qty","Unit","Price","Amount","Tax","Cost / sqft","Notes",null,null,null,"not pre"]
[null,null,null,null,null,null,null,null,null,null,400]
["plastic61","Clear Film 6 mil 10 x 100",1,"ea",33.5,33.5,"OTT",{"$f":"F3/1000","v":3.3500000000000002E-2},"1000 sqft",null,{"$f":"H3*$K$2","v":13.4}]
["felt14","15# Roofing Felt - G.A.P. Label",1,"ea",14.5,14.5,"OTT",{"$f":"F4/400","v":3.6249999999999998E-2},"400 sqft",null,{"$f":"H4*$K$2","v":14.499999999999998}]
["7512PG-10.3M","Staple - 1 1/2\" Spotnails",1,"ea",48.88,48.88,"OTT",{"$f":"F5/1000","v":4.888E-2},"1 box = 1000 sqft",null,{"$f":"H5*$K$2","v":19.552}]
["mynaae125","1 1/4 Pins - Aerosmith",1,"ea",65,65,"OTT",{"$f":"F6/1000","v":6.5000000000000002E-2},"1 box = 1000 sqft",null,{"$f":"H6*$K$2","v":26}]
["plywood5/8","5/8\" Plywood - 19/32 PRS 40/20 Ext 1 SYP",1,"ea",2.23,2.23,"OTT",{"$f":"F7/32","v":6.9687499999999999E-2},"1 Sheet = 32 sqft",null,{"$f":"H7*$K$2","v":27.875}]
[]
[]
[null,null,null,null,null,null,null,null,"SubTotal",null,{"$f":"SUM(K3:K9)","v":101.327}]
[null,null,null,null,null,null,null,null,"Tax (8.25%)",null,{"$f":"K10*0.0875","v":8.8661124999999998}]
[null,null,null,null,null,null,null,null,"Total With Tax",null,{"$f":"SUM(K10:K11)","v":110.1931125}]
[null,null,null,null,null,null,null,null,"Total per SqFt (w/ tax)",null,{"$f":"K12/K2","v":0.27548278124999998}]
[null,null,null,null,null,null,null,null,"Wood Markup",null,{"$f":"((#REF!/K2)+L14)*K2","v":{"$error":"#REF!"}},1]
[null,null,null,null,null,null,null,null,"Labor Markup",null,{"$f":"L15*K2","v":1200},3]
[null,"Make a Budgeting thing",null,null,null,null,null,null,"Total Quoted",null,{"$f":"SUM(K15+K14)+SUM(K3:K8)","v":{"$error":"#REF!"}}]
[null,"Negotiate Labor",null,null,null,null,null,null,"Total Quoted per SqFt",null,{"$f":"K16/K2","v":{"$error":"#REF!"}}]
[null,"average btw low and high"]
[null,"8.5-9.5 / sqft  unfinished & pre"]
[null,"pre finished Margin per SqFt (1 wood / 3  labor)"]

{"sheet":"Scratch","index":6,"n_rows":10,"n_cols":1,"rows_kept":10,"cut":false,"hidden":false,"merged":[]}
[]
["http://www.floorstores.com/hardwood_catalog.aspx"]
[]
["http://www.shawfloors.com/hardwood-floors/Dark"]
[]
["http://www.lumberliquidators.com/catalog/thumbnail.jsp?categoryId=348&sectionId=1&sort=TA&subCategoryId=0&ref=By%20Category;274500000"]
[]
["http://www.woodflooringproducts.com/catalogs/index.asp?category=316875&count=1"]
[]
["http://www.flooringexpertsusa.com/buy-hardwood-flooring-online.html"]

{"sheet":"Sheet4","index":7,"n_rows":60,"n_cols":5,"rows_kept":60,"cut":false,"hidden":false,"merged":[]}
[]
["Quote Details -- Unfinished",null,null,"Quote Details -- Finished"]
[]
[" 3 1/4\" Red Oak #1 Common",null,null,"3/4\" x 2-1/4\" Select Red Oak, Clear Finish, Select"]
["Total Square Feet",550,null,"Total Square Feet",{"$f":"B5","v":550}]
["Materials SubTotal",{"$f":"SUM(B25:B36)","v":239.938625},null,"Materials SubTotal",{"$f":"SUM(E25:E29)","v":139.324625}]
["Wood SubTotal (pre-markup)",{"$f":"B21","v":1320},null,"Wood SubTotal (pre-markup)",{"$f":"E21","v":3212}]
["Tax (8.25%)",{"$f":"(SUM(B6:B7)*B46)","v":128.6949365625},null,"Tax (8.25%)",{"$f":"SUM(E6:E7)*E39","v":276.48428156250003}]
["Total With Tax",{"$f":"SUM(B6:B8)","v":1688.6335615625001},null,"Total With Tax",{"$f":"SUM(E6:E8)","v":3627.8089065625004}]
["Total cost of materials per SqFt (w/ tax)",{"$f":"B9/B5","v":3.0702428392045458},null,"Total cost of materials per SqFt (w/ tax)",{"$f":"E9/E5","v":6.5960161937500006}]
["New Cost of Wood w/ Markup ",{"$f":"((B7/B5)+B39)*B5","v":1870},null,"New Cost of Wood w/ Markup ",{"$f":"((E7/E5)+E32)*E5","v":3762}]
["Labor",{"$f":"B5*B40","v":2750},null,"Labor",{"$f":"E5*E33","v":1650}]
["Total Price Quoted",{"$f":"(B6*(1+B46))+(B7*B46)+B11+B12","v":4988.6335615625003},null,"Total Price Quoted",{"$f":"(E6*(1+E39))+(E7*E39)+E11+E12","v":5827.8089065624999}]
["Total Quoted per SqFt",{"$f":"B13/B5","v":9.0702428392045462},null,"Total Quoted per SqFt",{"$f":"E13/E5","v":10.59601619375}]
["Transportation Costs",null,null,"Transportation Costs"]
["Costs After Transportation",null,null,"Costs After Transportation"]
[]
[]
["Details",null,null,"Details"]
["Wood",null,null,"Wood"]
[" 3 1/4\" Red Oak #1 Common",1320,null,"3/4\" x 2-1/4\" Select Red Oak, Clear Finish, Select",{"$f":"E22*E5","v":3212}]
["Cost per Square Foot",{"$f":"B7/B5","v":2.4},null,"Cost per Square Foot",5.84]
[]
["Materials",null,null,"Materials"]
["Polo Plaz 5Gal Supreme Finish Satin",{"$f":"QuoteUnFin!$H$3*$B$5","v":35.475000000000001},null,"Clear Film 6 mil 10 x 100",{"$f":"QuoteUnFin!$H$5*$B$5","v":18.425000000000001}]
["BonaKemi DriFast 1Gal Stain Antique Brown",{"$f":"QuoteUnFin!$H$4*$B$5","v":33.044000000000004},null,"15# Roofing Felt - G.A.P. Label",{"$f":"QuoteUnFin!$H$6*$B$5","v":19.9375}]
["Clear Film 6 mil 10 x 100",{"$f":"QuoteUnFin!$H$5*$B$5","v":18.425000000000001},null,"Staple - 1 1/2\" Spotnails",{"$f":"QuoteUnFin!$H$7*$B$5","v":26.884}]
["15# Roofing Felt - G.A.P. Label",{"$f":"QuoteUnFin!$H$6*$B$5","v":19.9375},null,"1 1/4 Pins - Aerosmith",{"$f":"QuoteUnFin!$H$8*$B$5","v":35.75}]
["Staple - 1 1/2\" Spotnails",{"$f":"QuoteUnFin!$H$7*$B$5","v":26.884},null,"5/8\" Plywood - 19/32 PRS 40/20 Ext 1 SYP",{"$f":"QuoteUnFin!$H$9*$B$5","v":38.328125}]
["1 1/4 Pins - Aerosmith",{"$f":"QuoteUnFin!$H$8*$B$5","v":35.75}]
["5/8\" Plywood - 19/32 PRS 40/20 Ext 1 SYP",{"$f":"QuoteUnFin!$H$9*$B$5","v":38.328125},null,"Markup"]
["7 7/8 x 29 1/2 Norton Belt 36 Grit Silicon Carbide",{"$f":"QuoteUnFin!$H$10","v":15.25},null,"Wood",1]
["7 7/8 x 29 1/2 Norton Belt 80 Grit Silicon Carbide",{"$f":"QuoteUnFin!$H$11","v":6.37},null,"Labor",3]
["16in Norton Screen 80 Grit",{"$f":"QuoteUnFin!$H$12","v":5.25}]
["7 x 7/8 Norton Edger Disc Silicon Carbide 80 Grit",{"$f":"QuoteUnFin!$H$13*$B$5","v":2.75},null,"Distance"]
["7 x 7/8 Norton Edger Disc Silicon Carbide 100 Grit",{"$f":"QuoteUnFin!$H$14*$B$5","v":2.4750000000000001},null,"Miles Traveled"]
[null,null,null,"Total Cost"]
["Markup"]
["Wood",1,null,"Tax Rate",8.2500000000000004E-2]
["Labor",5]
[null,null,null,"Materials","Qty. Used"]
["Distance",null,null,"Clear Film 6 mil 10 x 100",{"$f":"$B$5/1000","v":0.55000000000000004}]
["Miles Traveled",null,null,"15# Roofing Felt - G.A.P. Label",{"$f":"$B$5/400","v":1.375}]
["Total Cost",null,null,"Staple - 1 1/2\" Spotnails",{"$f":"$B$5/1000","v":0.55000000000000004}]
[null,null,null,"1 1/4 Pins - Aerosmith",{"$f":"$B$5/1000","v":0.55000000000000004}]
["Tax Rate",8.2500000000000004E-2,null,"5/8\" Plywood - 19/32 PRS 40/20 Ext 1 SYP",{"$f":"$B$5/32","v":17.1875}]
[]
["Materials","Qty. Used"]
["Polo Plaz 5Gal Supreme Finish Satin",{"$f":"B5/2000","v":0.27500000000000002}]
["BonaKemi DriFast 1Gal Stain Antique Brown",{"$f":"B5/500","v":1.1000000000000001}]
["Clear Film 6 mil 10 x 100",{"$f":"$B$5/1000","v":0.55000000000000004}]
["15# Roofing Felt - G.A.P. Label",{"$f":"$B$5/400","v":1.375}]
["Staple - 1 1/2\" Spotnails",{"$f":"$B$5/1000","v":0.55000000000000004}]
["1 1/4 Pins - Aerosmith",{"$f":"$B$5/1000","v":0.55000000000000004}]
["5/8\" Plywood - 19/32 PRS 40/20 Ext 1 SYP",{"$f":"$B$5/32","v":17.1875}]
["7 7/8 x 29 1/2 Norton Belt 36 Grit Silicon Carbide",{"$f":"$B$5/1000","v":0.55000000000000004}]
["7 7/8 x 29 1/2 Norton Belt 80 Grit Silicon Carbide",{"$f":"$B$5/1000","v":0.55000000000000004}]
["16in Norton Screen 80 Grit",{"$f":"$B$5/100","v":5.5}]
["7 x 7/8 Norton Edger Disc Silicon Carbide 80 Grit",{"$f":"$B$5/100","v":5.5}]
["7 x 7/8 Norton Edger Disc Silicon Carbide 100 Grit",{"$f":"$B$5/100","v":5.5}]